Workbook

Sheet 1
A1: مـنـتـج تــام | B1: زيـوت خــام | D1: شركة عباد الرحمن للنقل الداخلي | I1: 1093 | J1: كمال محمد السيد محمد
A2: الايمان 737 | B2: أحمد ع القوى 2691 | D2: العاشر من رمضان | I2: 1204 | J2: ملف ضريبي | K2: 35-03-552-01584-5
A3: محرم 1619 | B3: المستقبل 1317 | F3: فـــاتــورة | J3: ماموريه ضرائب العاشر من رمضان
A5: جمعية 1220 | B5: الامين 2546 | G5: منتج تام | I5: =SUM(I1:I4) -> 2297 | J5: سجل تجارى : 6707
A6: الاسراء 1630 | B6: المؤسسة 2631 | E6: المطلوب من :- شركة ارما التجاريه | J6: التسجيل ضريبي 576-885-259
D7: 2019-10-10 | I7: 1203
C8: عمود1 | D8: م | E8: القيمة + 14 % | F8: القيمة بالجنيه | G8: سعر الطن | H8: الكميه | I8: المحافظة | J8: رقم Shipment | K8: نوع السيارة | L8: الميزان | M8: عمود2
D44: 1 | E44: =IFERROR((الجدول6[[#This Row],[القيمة بالجنيه]]*1.14),"") ->  | F44: =IFERROR(ROUND(G44*H44,2),"") ->  | G44: =IFERROR(INDEX(الجدول4[[5 طن]:[وش]],MATCH(الجدول6[[#This Row],[المحافظة]],الجدول4[عمود1],0),MATCH(الجدول6[[#This Row],[نوع السيارة]],الجدول4[[#Headers],[5 طن]:[وش]],0)),"") ->  | H44: =IFERROR(OFFSET(بيانات!$A$4,MATCH(C44,بيانات!$X$5:$X$107,0),24),"") ->  | I44: =IFERROR(OFFSET(بيانات!$A$4,MATCH(C44,بيانات!$X$5:$X$107,0),7),"") ->  | J44: =الجدول6[[#This Row],[عمود1]] -> 0 | K44: =IFERROR(OFFSET(بيانات!$A$4,MATCH(C44,بيانات!$X$5:$X$107,0),26),"") ->  | L44: =IFERROR(OFFSET(بيانات!$A$4,MATCH(C44,بيانات!$X$5:$X$107,0),21),"") ->  | M44: 201
D45: 2 | E45: =IFERROR((الجدول6[[#This Row],[القيمة بالجنيه]]*1.14),"") ->  | F45: =IFERROR(ROUND(G45*H45,2),"") ->  | G45: =IFERROR(INDEX(الجدول4[[5 طن]:[وش]],MATCH(الجدول6[[#This Row],[المحافظة]],الجدول4[عمود1],0),MATCH(الجدول6[[#This Row],[نوع السيارة]],الجدول4[[#Headers],[5 طن]:[وش]],0)),"") ->  | H45: =IFERROR(OFFSET(بيانات!$A$4,MATCH(C45,بيانات!$X$5:$X$107,0),24),"") ->  | I45: =IFERROR(OFFSET(بيانات!$A$4,MATCH(C45,بيانات!$X$5:$X$107,0),7),"") ->  | J45: =الجدول6[[#This Row],[عمود1]] -> 0 | K45: =IFERROR(OFFSET(بيانات!$A$4,MATCH(C45,بيانات!$X$5:$X$107,0),26),"") ->  | L45: =IFERROR(OFFSET(بيانات!$A$4,MATCH(C45,بيانات!$X$5:$X$107,0),21),"") ->  | M45: 1684
D46: 3 | E46: =IFERROR((الجدول6[[#This Row],[القيمة بالجنيه]]*1.14),"") ->  | G46: =IFERROR(INDEX(الجدول4[[5 طن]:[وش]],MATCH(الجدول6[[#This Row],[المحافظة]],الجدول4[عمود1],0),MATCH(الجدول6[[#This Row],[نوع السيارة]],الجدول4[[#Headers],[5 طن]:[وش]],0)),"") ->  | H46: =IFERROR(OFFSET(بيانات!$A$4,MATCH(C46,بيانات!$X$5:$X$107,0),24),"") ->  | I46: =IFERROR(OFFSET(بيانات!$A$4,MATCH(C46,بيانات!$X$5:$X$107,0),7),"") ->  | J46: =الجدول6[[#This Row],[عمود1]] -> 0 | K46: =IFERROR(OFFSET(بيانات!$A$4,MATCH(C46,بيانات!$X$5:$X$107,0),26),"") ->  | L46: =IFERROR(OFFSET(بيانات!$A$4,MATCH(C46,بيانات!$X$5:$X$107,0),21),"") ->  | M46: 1771
D47: 4 | E47: =IFERROR((الجدول6[[#This Row],[القيمة بالجنيه]]*1.14),"") ->  | G47: =IFERROR(INDEX(الجدول4[[5 طن]:[وش]],MATCH(الجدول6[[#This Row],[المحافظة]],الجدول4[عمود1],0),MATCH(الجدول6[[#This Row],[نوع السيارة]],الجدول4[[#Headers],[5 طن]:[وش]],0)),"") ->  | H47: =IFERROR(OFFSET(بيانات!$A$4,MATCH(C47,بيانات!$X$5:$X$107,0),24),"") ->  | I47: =IFERROR(OFFSET(بيانات!$A$4,MATCH(C47,بيانات!$X$5:$X$107,0),7),"") ->  | J47: =الجدول6[[#This Row],[عمود1]] -> 0 | K47: =IFERROR(OFFSET(بيانات!$A$4,MATCH(C47,بيانات!$X$5:$X$107,0),26),"") ->  | L47: =IFERROR(OFFSET(بيانات!$A$4,MATCH(C47,بيانات!$X$5:$X$107,0),21),"") ->  | M47: 0
D48: 5 | E48: =IFERROR((الجدول6[[#This Row],[القيمة بالجنيه]]*1.14),"") ->  | G48: =IFERROR(INDEX(الجدول4[[5 طن]:[وش]],MATCH(الجدول6[[#This Row],[المحافظة]],الجدول4[عمود1],0),MATCH(الجدول6[[#This Row],[نوع السيارة]],الجدول4[[#Headers],[5 طن]:[وش]],0)),"") ->  | H48: =IFERROR(OFFSET(بيانات!$A$4,MATCH(C48,بيانات!$X$5:$X$107,0),24),"") ->  | I48: =IFERROR(OFFSET(بيانات!$A$4,MATCH(C48,بيانات!$X$5:$X$107,0),7),"") ->  | J48: =الجدول6[[#This Row],[عمود1]] -> 0 | K48: =IFERROR(OFFSET(بيانات!$A$4,MATCH(C48,بيانات!$X$5:$X$107,0),26),"") ->  | L48: =IFERROR(OFFSET(بيانات!$A$4,MATCH(C48,بيانات!$X$5:$X$107,0),21),"") ->  | M48: =SUBTOTAL(109,M9:M47) -> 3656
D49: 6 | E49: =IFERROR((الجدول6[[#This Row],[القيمة بالجنيه]]*1.14),"") ->  | G49: =IFERROR(INDEX(الجدول4[[5 طن]:[وش]],MATCH(الجدول6[[#This Row],[المحافظة]],الجدول4[عمود1],0),MATCH(الجدول6[[#This Row],[نوع السيارة]],الجدول4[[#Headers],[5 طن]:[وش]],0)),"") ->  | H49: =IFERROR(OFFSET(بيانات!$A$4,MATCH(C49,بيانات!$X$5:$X$107,0),24),"") ->  | I49: =IFERROR(OFFSET(بيانات!$A$4,MATCH(C49,بيانات!$X$5:$X$107,0),7),"") ->  | J49: =الجدول6[[#This Row],[عمود1]] -> 0 | K49: =IFERROR(OFFSET(بيانات!$A$4,MATCH(C49,بيانات!$X$5:$X$107,0),26),"") ->  | L49: =IFERROR(OFFSET(بيانات!$A$4,MATCH(C49,بيانات!$X$5:$X$107,0),21),"") -> 
D50: 7 | E50: =IFERROR((الجدول6[[#This Row],[القيمة بالجنيه]]*1.14),"") ->  | G50: =IFERROR(INDEX(الجدول4[[5 طن]:[وش]],MATCH(الجدول6[[#This Row],[المحافظة]],الجدول4[عمود1],0),MATCH(الجدول6[[#This Row],[نوع السيارة]],الجدول4[[#Headers],[5 طن]:[وش]],0)),"") ->  | H50: =IFERROR(OFFSET(بيانات!$A$4,MATCH(C50,بيانات!$X$5:$X$107,0),24),"") ->  | I50: =IFERROR(OFFSET(بيانات!$A$4,MATCH(C50,بيانات!$X$5:$X$107,0),7),"") ->  | J50: =الجدول6[[#This Row],[عمود1]] -> 0 | K50: =IFERROR(OFFSET(بيانات!$A$4,MATCH(C50,بيانات!$X$5:$X$107,0),26),"") ->  | L50: =IFERROR(OFFSET(بيانات!$A$4,MATCH(C50,بيانات!$X$5:$X$107,0),21),"") -> 
D51: 8 | E51: =IFERROR((الجدول6[[#This Row],[القيمة بالجنيه]]*1.14),"") ->  | G51: =IFERROR(INDEX(الجدول4[[5 طن]:[وش]],MATCH(الجدول6[[#This Row],[المحافظة]],الجدول4[عمود1],0),MATCH(الجدول6[[#This Row],[نوع السيارة]],الجدول4[[#Headers],[5 طن]:[وش]],0)),"") ->  | H51: =IFERROR(OFFSET(بيانات!$A$4,MATCH(C51,بيانات!$X$5:$X$107,0),24),"") ->  | I51: =IFERROR(OFFSET(بيانات!$A$4,MATCH(C51,بيانات!$X$5:$X$107,0),7),"") ->  | J51: =الجدول6[[#This Row],[عمود1]] -> 0 | K51: =IFERROR(OFFSET(بيانات!$A$4,MATCH(C51,بيانات!$X$5:$X$107,0),26),"") ->  | L51: =IFERROR(OFFSET(بيانات!$A$4,MATCH(C51,بيانات!$X$5:$X$107,0),21),"") -> 
D52: 9 | E52: =IFERROR((الجدول6[[#This Row],[القيمة بالجنيه]]*1.14),"") ->  | G52: =IFERROR(INDEX(الجدول4[[5 طن]:[وش]],MATCH(الجدول6[[#This Row],[المحافظة]],الجدول4[عمود1],0),MATCH(الجدول6[[#This Row],[نوع السيارة]],الجدول4[[#Headers],[5 طن]:[وش]],0)),"") ->  | H52: =IFERROR(OFFSET(بيانات!$A$4,MATCH(C52,بيانات!$X$5:$X$107,0),24),"") ->  | I52: =IFERROR(OFFSET(بيانات!$A$4,MATCH(C52,بيانات!$X$5:$X$107,0),7),"") ->  | J52: =الجدول6[[#This Row],[عمود1]] -> 0 | K52: =IFERROR(OFFSET(بيانات!$A$4,MATCH(C52,بيانات!$X$5:$X$107,0),26),"") ->  | L52: =IFERROR(OFFSET(بيانات!$A$4,MATCH(C52,بيانات!$X$5:$X$107,0),21),"") -> 
D53: 10 | E53: =IFERROR((الجدول6[[#This Row],[القيمة بالجنيه]]*1.14),"") ->  | G53: =IFERROR(INDEX(الجدول4[[5 طن]:[وش]],MATCH(الجدول6[[#This Row],[المحافظة]],الجدول4[عمود1],0),MATCH(الجدول6[[#This Row],[نوع السيارة]],الجدول4[[#Headers],[5 طن]:[وش]],0)),"") ->  | H53: =IFERROR(OFFSET(بيانات!$A$4,MATCH(C53,بيانات!$X$5:$X$107,0),24),"") ->  | I53: =IFERROR(OFFSET(بيانات!$A$4,MATCH(C53,بيانات!$X$5:$X$107,0),7),"") ->  | J53: =الجدول6[[#This Row],[عمود1]] -> 0 | K53: =IFERROR(OFFSET(بيانات!$A$4,MATCH(C53,بيانات!$X$5:$X$107,0),26),"") ->  | L53: =IFERROR(OFFSET(بيانات!$A$4,MATCH(C53,بيانات!$X$5:$X$107,0),21),"") -> 
D54: 11 | E54: =IFERROR((الجدول6[[#This Row],[القيمة بالجنيه]]*1.14),"") ->  | G54: =IFERROR(INDEX(الجدول4[[5 طن]:[وش]],MATCH(الجدول6[[#This Row],[المحافظة]],الجدول4[عمود1],0),MATCH(الجدول6[[#This Row],[نوع السيارة]],الجدول4[[#Headers],[5 طن]:[وش]],0)),"") ->  | H54: =IFERROR(OFFSET(بيانات!$A$4,MATCH(C54,بيانات!$X$5:$X$107,0),24),"") ->  | I54: =IFERROR(OFFSET(بيانات!$A$4,MATCH(C54,بيانات!$X$5:$X$107,0),7),"") ->  | J54: =الجدول6[[#This Row],[عمود1]] -> 0 | K54: =IFERROR(OFFSET(بيانات!$A$4,MATCH(C54,بيانات!$X$5:$X$107,0),26),"") ->  | L54: =IFERROR(OFFSET(بيانات!$A$4,MATCH(C54,بيانات!$X$5:$X$107,0),21),"") -> 
D55: 12 | E55: =IFERROR((الجدول6[[#This Row],[القيمة بالجنيه]]*1.14),"") ->  | G55: =IFERROR(INDEX(الجدول4[[5 طن]:[وش]],MATCH(الجدول6[[#This Row],[المحافظة]],الجدول4[عمود1],0),MATCH(الجدول6[[#This Row],[نوع السيارة]],الجدول4[[#Headers],[5 طن]:[وش]],0)),"") ->  | H55: =IFERROR(OFFSET(بيانات!$A$4,MATCH(C55,بيانات!$X$5:$X$107,0),24),"") ->  | I55: =IFERROR(OFFSET(بيانات!$A$4,MATCH(C55,بيانات!$X$5:$X$107,0),7),"") ->  | J55: =الجدول6[[#This Row],[عمود1]] -> 0 | K55: =IFERROR(OFFSET(بيانات!$A$4,MATCH(C55,بيانات!$X$5:$X$107,0),26),"") ->  | L55: =IFERROR(OFFSET(بيانات!$A$4,MATCH(C55,بيانات!$X$5:$X$107,0),21),"") -> 
D56: 13 | E56: =IFERROR((الجدول6[[#This Row],[القيمة بالجنيه]]*1.14),"") ->  | G56: =IFERROR(INDEX(الجدول4[[5 طن]:[وش]],MATCH(الجدول6[[#This Row],[المحافظة]],الجدول4[عمود1],0),MATCH(الجدول6[[#This Row],[نوع السيارة]],الجدول4[[#Headers],[5 طن]:[وش]],0)),"") ->  | H56: =IFERROR(OFFSET(بيانات!$A$4,MATCH(C56,بيانات!$X$5:$X$107,0),24),"") ->  | I56: =IFERROR(OFFSET(بيانات!$A$4,MATCH(C56,بيانات!$X$5:$X$107,0),7),"") ->  | J56: =الجدول6[[#This Row],[عمود1]] -> 0 | K56: =IFERROR(OFFSET(بيانات!$A$4,MATCH(C56,بيانات!$X$5:$X$107,0),26),"") ->  | L56: =IFERROR(OFFSET(بيانات!$A$4,MATCH(C56,بيانات!$X$5:$X$107,0),21),"") -> 
D57: 14 | E57: =IFERROR((الجدول6[[#This Row],[القيمة بالجنيه]]*1.14),"") ->  | G57: =IFERROR(INDEX(الجدول4[[5 طن]:[وش]],MATCH(الجدول6[[#This Row],[المحافظة]],الجدول4[عمود1],0),MATCH(الجدول6[[#This Row],[نوع السيارة]],الجدول4[[#Headers],[5 طن]:[وش]],0)),"") ->  | H57: =IFERROR(OFFSET(بيانات!$A$4,MATCH(C57,بيانات!$X$5:$X$107,0),24),"") ->  | I57: =IFERROR(OFFSET(بيانات!$A$4,MATCH(C57,بيانات!$X$5:$X$107,0),7),"") ->  | J57: =الجدول6[[#This Row],[عمود1]] -> 0 | K57: =IFERROR(OFFSET(بيانات!$A$4,MATCH(C57,بيانات!$X$5:$X$107,0),26),"") ->  | L57: =IFERROR(OFFSET(بيانات!$A$4,MATCH(C57,بيانات!$X$5:$X$107,0),21),"") -> 
D58: 15 | E58: =IFERROR((الجدول6[[#This Row],[القيمة بالجنيه]]*1.14),"") ->  | G58: =IFERROR(INDEX(الجدول4[[5 طن]:[وش]],MATCH(الجدول6[[#This Row],[المحافظة]],الجدول4[عمود1],0),MATCH(الجدول6[[#This Row],[نوع السيارة]],الجدول4[[#Headers],[5 طن]:[وش]],0)),"") ->  | H58: =IFERROR(OFFSET(بيانات!$A$4,MATCH(C58,بيانات!$X$5:$X$107,0),24),"") ->  | I58: =IFERROR(OFFSET(بيانات!$A$4,MATCH(C58,بيانات!$X$5:$X$107,0),7),"") ->  | J58: =الجدول6[[#This Row],[عمود1]] -> 0 | K58: =IFERROR(OFFSET(بيانات!$A$4,MATCH(C58,بيانات!$X$5:$X$107,0),26),"") ->  | L58: =IFERROR(OFFSET(بيانات!$A$4,MATCH(C58,بيانات!$X$5:$X$107,0),21),"") -> 
D59: 16 | E59: =IFERROR((الجدول6[[#This Row],[القيمة بالجنيه]]*1.14),"") ->  | G59: =IFERROR(INDEX(الجدول4[[5 طن]:[وش]],MATCH(الجدول6[[#This Row],[المحافظة]],الجدول4[عمود1],0),MATCH(الجدول6[[#This Row],[نوع السيارة]],الجدول4[[#Headers],[5 طن]:[وش]],0)),"") ->  | H59: =IFERROR(OFFSET(بيانات!$A$4,MATCH(C59,بيانات!$X$5:$X$107,0),24),"") ->  | I59: =IFERROR(OFFSET(بيانات!$A$4,MATCH(C59,بيانات!$X$5:$X$107,0),7),"") ->  | J59: =الجدول6[[#This Row],[عمود1]] -> 0 | K59: =IFERROR(OFFSET(بيانات!$A$4,MATCH(C59,بيانات!$X$5:$X$107,0),26),"") ->  | L59: =IFERROR(OFFSET(بيانات!$A$4,MATCH(C59,بيانات!$X$5:$X$107,0),21),"") -> 
D60: 17 | E60: =IFERROR((الجدول6[[#This Row],[القيمة بالجنيه]]*1.14),"") ->  | G60: =IFERROR(INDEX(الجدول4[[5 طن]:[وش]],MATCH(الجدول6[[#This Row],[المحافظة]],الجدول4[عمود1],0),MATCH(الجدول6[[#This Row],[نوع السيارة]],الجدول4[[#Headers],[5 طن]:[وش]],0)),"") ->  | H60: =IFERROR(OFFSET(بيانات!$A$4,MATCH(C60,بيانات!$X$5:$X$107,0),24),"") ->  | I60: =IFERROR(OFFSET(بيانات!$A$4,MATCH(C60,بيانات!$X$5:$X$107,0),7),"") ->  | J60: =الجدول6[[#This Row],[عمود1]] -> 0 | K60: =IFERROR(OFFSET(بيانات!$A$4,MATCH(C60,بيانات!$X$5:$X$107,0),26),"") ->  | L60: =IFERROR(OFFSET(بيانات!$A$4,MATCH(C60,بيانات!$X$5:$X$107,0),21),"") -> 
D61: 18 | E61: =IFERROR((الجدول6[[#This Row],[القيمة بالجنيه]]*1.14),"") ->  | G61: =IFERROR(INDEX(الجدول4[[5 طن]:[وش]],MATCH(الجدول6[[#This Row],[المحافظة]],الجدول4[عمود1],0),MATCH(الجدول6[[#This Row],[نوع السيارة]],الجدول4[[#Headers],[5 طن]:[وش]],0)),"") ->  | H61: =IFERROR(OFFSET(بيانات!$A$4,MATCH(C61,بيانات!$X$5:$X$107,0),24),"") ->  | I61: =IFERROR(OFFSET(بيانات!$A$4,MATCH(C61,بيانات!$X$5:$X$107,0),7),"") ->  | J61: =الجدول6[[#This Row],[عمود1]] -> 0 | K61: =IFERROR(OFFSET(بيانات!$A$4,MATCH(C61,بيانات!$X$5:$X$107,0),26),"") ->  | L61: =IFERROR(OFFSET(بيانات!$A$4,MATCH(C61,بيانات!$X$5:$X$107,0),21),"") -> 
D62: 19 | E62: =IFERROR((الجدول6[[#This Row],[القيمة بالجنيه]]*1.14),"") ->  | G62: =IFERROR(INDEX(الجدول4[[5 طن]:[وش]],MATCH(الجدول6[[#This Row],[المحافظة]],الجدول4[عمود1],0),MATCH(الجدول6[[#This Row],[نوع السيارة]],الجدول4[[#Headers],[5 طن]:[وش]],0)),"") ->  | H62: =IFERROR(OFFSET(بيانات!$A$4,MATCH(C62,بيانات!$X$5:$X$107,0),24),"") ->  | I62: =IFERROR(OFFSET(بيانات!$A$4,MATCH(C62,بيانات!$X$5:$X$107,0),7),"") ->  | J62: =الجدول6[[#This Row],[عمود1]] -> 0 | K62: =IFERROR(OFFSET(بيانات!$A$4,MATCH(C62,بيانات!$X$5:$X$107,0),26),"") ->  | L62: =IFERROR(OFFSET(بيانات!$A$4,MATCH(C62,بيانات!$X$5:$X$107,0),21),"") -> 
E63: =SUMIF(E44:E62,"<>#n/a") -> 0 | F63: =SUMIF(F44:F62,"<>#n/a") -> 0 | H63: =SUM(H52:H56) -> 0 | L63: 0
G64: =F63*14% -> 0 | H64: 14%ضريبة مبيعات
G65: =F63*3/100 -> 0 | H65: 3%خصم واضافة
G66: =F63+G64-G65 -> 0 | H66: اجمالى المستحق
E67: 16428.35
E68: =E63-E67 -> -16428.35

Sheet بيانات
B1: المستحق بالجنيه | F1: =(W3+V3+K3)-(G3+I3+J3) -> -17995 | H1: جنيه | I1: =NOW() -> 2020-08-27T15:07:52.870
D2: =CurrText(F1,1,"جنيه","جنيهات",1,"قرش","قروش",2) -> سبعة عشر ألفاً وتسعمائة وخمس وتسعون جنيه فقط لاغير
B3: اجماليات | G3: =SUBTOTAL(9,G5:G94254) -> 30340 | I3: =SUBTOTAL(9,I5:I94254) -> 15 | J3: =SUBTOTAL(9,J5:J94254) -> 0 | K3: =SUBTOTAL(9,K5:K94254) -> 0 | R3: =SUBTOTAL(9,R5:R94254) -> 10450 | V3: =SUBTOTAL(9,V5:V94254) -> 3860 | W3: =SUBTOTAL(9,W5:W94254) -> 8500
A4: عمود1 | B4: التاريخ | C4: السائق | D4: السياره | E4: مكان التحميل | F4: مكان التعتيق | G4: عهدة | H4: المحافظة | I4: خصم | J4: سلفه | K4: شيك | L4: تحميل | M4: غسيل | N4: تشحيم | O4: صيانه | P4: كاوتش | Q4: زيت | R4: سولار | S4: ملاحظات | T4: مقاول | U4: نوع_النقله | V4: ميزان | W4: القيمه | X4: الشيب | Y4: الكمية | Z4: سعر_الطن | AA4: نوع السيارة | AB4: محاسبة | AC4: ت المحاسبه | AD4: عمود5 | AE4: نوع السيارة4 | AF4: جرار | AG4: 5 طن | AH4: نقله
A5: =بيانات!$X5 -> 194157 | B5: 2020-01-01 | C5: هاني عبدالمنعم | D5: 9626 | F5: فوكس | G5: 400 | H5: القاهره | U5: طن | V5: 75 | W5: =IFERROR(IF($U5="نقلة",$Z5,IF(AND(Y5>=SUMIF(data!$A$18:$A$21,$AA5,data!$B$18:$B$21),$U5="طن"),($Y5*$Z5),$Z5*SUMIF(data!$A$18:$A$21,$AA5,data!$B$18:$B$21))),"") -> 1140 | X5: 194157 | Y5: 12 | Z5: =IFERROR(IF(بيانات!$U5="نقلة",INDEX(الجدول35[[5 طن]:[وش]],MATCH(بيانات!$H5,الجدول35[عمود1],0),MATCH(بيانات!$AA5,الجدول35[[#Headers],[5 طن]:[وش]],0)),INDEX(الجدول3[[5 طن]:[وش]],MATCH(بيانات!$H5,الجدول3[عمود1],0),MATCH(بيانات!$AA5,الجدول3[[#Headers],[5 طن]:[وش]],0))),"") -> 95 | AA5: فرداني | AF5: =IF(AND(بيانات!$Y5>=24,بيانات!$U5="طن",بيانات!$AA5="جرار"),بيانات!$Z5*بيانات!$Y5,بيانات!$Z5*24) -> 2280 | AG5: =IF(AND(بيانات!$Y5>=5,AND(بيانات!$U5="طن",بيانات!$AA5="5 طن")),بيانات!$Z5*بيانات!$Y5,بيانات!$Z5*5) -> 475 | AH5: =IF(بيانات!$U5="نقلة",بيانات!$Z5,"") -> 
A6: =بيانات!$X6 -> 194034 | B6: 2020-01-01 | C6: محمود احمد | D6: 7421 | F6: الفيوم | G6: 600 | H6: القاهره | U6: طن | V6: 75 | W6: =IFERROR(IF($U6="نقلة",$Z6,IF(AND(Y6>=SUMIF(data!$A$18:$A$21,AA6,data!$B$18:$B$21),$U6="طن"),($Y6*$Z6),$Z6*AC6)),"") -> 0 | X6: 194034 | Y6: 7 | Z6: =IFERROR(IF(بيانات!$U6="نقلة",INDEX(الجدول35[[5 طن]:[وش]],MATCH(بيانات!$H6,الجدول35[عمود1],0),MATCH(بيانات!$AA6,الجدول35[[#Headers],[5 طن]:[وش]],0)),INDEX(الجدول3[[5 طن]:[وش]],MATCH(بيانات!$H6,الجدول3[عمود1],0),MATCH(بيانات!$AA6,الجدول3[[#Headers],[5 طن]:[وش]],0))),"") -> 80 | AA6: جرار | AF6: =IF(AND(بيانات!$Y6>=24,بيانات!$U6="طن",بيانات!$AA6="جرار"),بيانات!$Z6*بيانات!$Y6,بيانات!$Z6*24) -> 1920 | AG6: =IF(AND(بيانات!$Y6>=5,AND(بيانات!$U6="طن",بيانات!$AA6="5 طن")),بيانات!$Z6*بيانات!$Y6,بيانات!$Z6*5) -> 400 | AH6: =IF(بيانات!$U6="نقلة",بيانات!$Z6,"") -> 
A7: =بيانات!$X7 -> 194079 | B7: 2020-01-02 | C7: علاء شحاته | D7: 7462 | F7: البدرشين | G7: 300 | H7: الجيزه | U7: نقلة | V7: 75 | W7: =IFERROR(IF($U7="نقلة",$Z7,IF(AND(Y7>=SUMIF(data!$A$18:$A$21,AA7,data!$B$18:$B$21),$U7="طن"),($Y7*$Z7),$Z7*AC7)),"") -> 550 | X7: 194079 | Y7: 5 | Z7: =IFERROR(IF(بيانات!$U7="نقلة",INDEX(الجدول35[[5 طن]:[وش]],MATCH(بيانات!$H7,الجدول35[عمود1],0),MATCH(بيانات!$AA7,الجدول35[[#Headers],[5 طن]:[وش]],0)),INDEX(الجدول3[[5 طن]:[وش]],MATCH(بيانات!$H7,الجدول3[عمود1],0),MATCH(بيانات!$AA7,الجدول3[[#Headers],[5 طن]:[وش]],0))),"") -> 550 | AA7: 5 طن | AF7: =IF(AND(بيانات!$Y7>=24,بيانات!$U7="طن",بيانات!$AA7="جرار"),بيانات!$Z7*بيانات!$Y7,بيانات!$Z7*24) -> 13200 | AG7: =IF(AND(بيانات!$Y7>=5,AND(بيانات!$U7="طن",بيانات!$AA7="5 طن")),بيانات!$Z7*بيانات!$Y7,بيانات!$Z7*5) -> 2750 | AH7: =IF(بيانات!$U7="نقلة",بيانات!$Z7,"") -> 550
A8: =بيانات!$X8 -> 194162 | B8: 2020-01-05 | C8: محمود عبدالعظيم | D8: 7594 | F8: اسكندريه | G8: 500 | H8: الاسكندريه | U8: طن | V8: 80 | W8: =IFERROR(IF($U8="نقلة",$Z8,IF(AND(Y8>=SUMIF(data!$A$18:$A$21,AA8,data!$B$18:$B$21),$U8="طن"),($Y8*$Z8),$Z8*AC8)),"") -> 1935 | X8: 194162 | Y8: 9 | Z8: =IFERROR(IF(بيانات!$U8="نقلة",INDEX(الجدول35[[5 طن]:[وش]],MATCH(بيانات!$H8,الجدول35[عمود1],0),MATCH(بيانات!$AA8,الجدول35[[#Headers],[5 طن]:[وش]],0)),INDEX(الجدول3[[5 طن]:[وش]],MATCH(بيانات!$H8,الجدول3[عمود1],0),MATCH(بيانات!$AA8,الجدول3[[#Headers],[5 طن]:[وش]],0))),"") -> 215 | AA8: 5 طن | AF8: =IF(AND(بيانات!$Y8>=24,بيانات!$U8="طن",بيانات!$AA8="جرار"),بيانات!$Z8*بيانات!$Y8,بيانات!$Z8*24) -> 5160 | AG8: =IF(AND(بيانات!$Y8>=5,AND(بيانات!$U8="طن",بيانات!$AA8="5 طن")),بيانات!$Z8*بيانات!$Y8,بيانات!$Z8*5) -> 1935 | AH8: =IF(بيانات!$U8="نقلة",بيانات!$Z8,"") -> 
A9: =بيانات!$X9 -> 194093/4/5/6/7/8 | B9: 2020-01-07 | C9: حامد رفعت | D9: 1698 | F9: اسكندريه | H9: الاسكندريه | R9: 1000 | S9: لفه4 | U9: طن | V9: 80 | W9: =IFERROR(IF($U9="نقلة",$Z9,IF(AND(Y9>=SUMIF(data!$A$18:$A$21,AA9,data!$B$18:$B$21),$U9="طن"),($Y9*$Z9),$Z9*AC9)),"") -> 3225 | X9: 194093/4/5/6/7/8 | Y9: 15 | Z9: =IFERROR(IF(بيانات!$U9="نقلة",INDEX(الجدول35[[5 طن]:[وش]],MATCH(بيانات!$H9,الجدول35[عمود1],0),MATCH(بيانات!$AA9,الجدول35[[#Headers],[5 طن]:[وش]],0)),INDEX(الجدول3[[5 طن]:[وش]],MATCH(بيانات!$H9,الجدول3[عمود1],0),MATCH(بيانات!$AA9,الجدول3[[#Headers],[5 طن]:[وش]],0))),"") -> 215 | AA9: 5 طن | AF9: =IF(AND(بيانات!$Y9>=24,بيانات!$U9="طن",بيانات!$AA9="جرار"),بيانات!$Z9*بيانات!$Y9,بيانات!$Z9*24) -> 5160 | AG9: =IF(AND(بيانات!$Y9>=5,AND(بيانات!$U9="طن",بيانات!$AA9="5 طن")),بيانات!$Z9*بيانات!$Y9,بيانات!$Z9*5) -> 3225 | AH9: =IF(بيانات!$U9="نقلة",بيانات!$Z9,"") -> 
A10: =بيانات!$X10 -> 193904 | B10: 2020-01-18 | C10: رمضان محمود | D10: 7293 | F10: جيزه | H10: الجيزه | U10: طن | V10: 75 | W10: =IFERROR(IF($U10="نقلة",$Z10,IF(AND(Y10>=SUMIF(data!$A$18:$A$21,AA10,data!$B$18:$B$21),$U10="طن"),($Y10*$Z10),$Z10*AC10)),"") -> 1100 | X10: 193904 | Y10: 10 | Z10: =IFERROR(IF(بيانات!$U10="نقلة",INDEX(الجدول35[[5 طن]:[وش]],MATCH(بيانات!$H10,الجدول35[عمود1],0),MATCH(بيانات!$AA10,الجدول35[[#Headers],[5 طن]:[وش]],0)),INDEX(الجدول3[[5 طن]:[وش]],MATCH(بيانات!$H10,الجدول3[عمود1],0),MATCH(بيانات!$AA10,الجدول3[[#Headers],[5 طن]:[وش]],0))),"") -> 110 | AA10: 5 طن | AF10: =IF(AND(بيانات!$Y10>=24,بيانات!$U10="طن",بيانات!$AA10="جرار"),بيانات!$Z10*بيانات!$Y10,بيانات!$Z10*24) -> 2640 | AG10: =IF(AND(بيانات!$Y10>=5,AND(بيانات!$U10="طن",بيانات!$AA10="5 طن")),بيانات!$Z10*بيانات!$Y10,بيانات!$Z10*5) -> 1100 | AH10: =IF(بيانات!$U10="نقلة",بيانات!$Z10,"") -> 
A11: =بيانات!$X11 -> 194087 | B11: 2020-02-01 | C11: رمضان محمود | D11: 7293 | F11: ام زغو | G11: 200 | H11: الاسكندريه | U11: طن | V11: 80 | W11: =IFERROR(IF($U11="نقلة",$Z11,IF(AND(Y11>=SUMIF(data!$A$18:$A$21,AA11,data!$B$18:$B$21),$U11="طن"),($Y11*$Z11),$Z11*AC11)),"") -> 0 | X11: 194087 | Z11: =IFERROR(IF(بيانات!$U11="نقلة",INDEX(الجدول35[[5 طن]:[وش]],MATCH(بيانات!$H11,الجدول35[عمود1],0),MATCH(بيانات!$AA11,الجدول35[[#Headers],[5 طن]:[وش]],0)),INDEX(الجدول3[[5 طن]:[وش]],MATCH(بيانات!$H11,الجدول3[عمود1],0),MATCH(بيانات!$AA11,الجدول3[[#Headers],[5 طن]:[وش]],0))),"") -> 215 | AA11: 5 طن | AF11: =IF(AND(بيانات!$Y11>=24,بيانات!$U11="طن",بيانات!$AA11="جرار"),بيانات!$Z11*بيانات!$Y11,بيانات!$Z11*24) -> 5160 | AG11: =IF(AND(بيانات!$Y11>=5,AND(بيانات!$U11="طن",بيانات!$AA11="5 طن")),بيانات!$Z11*بيانات!$Y11,بيانات!$Z11*5) -> 1075 | AH11: =IF(بيانات!$U11="نقلة",بيانات!$Z11,"") -> 
A12: =بيانات!$X12 -> 194031 | B12: 2020-02-05 | C12: رمضان حمدي | D12: 1328 | F12: الحرمين | H12: الجيزه | U12: نقلة | V12: 65 | W12: =IFERROR(IF($U12="نقلة",$Z12,IF(AND(Y12>=SUMIF(data!$A$18:$A$21,AA12,data!$B$18:$B$21),$U12="طن"),($Y12*$Z12),$Z12*AC12)),"") -> 550 | X12: 194031 | Z12: =IFERROR(IF(بيانات!$U12="نقلة",INDEX(الجدول35[[5 طن]:[وش]],MATCH(بيانات!$H12,الجدول35[عمود1],0),MATCH(بيانات!$AA12,الجدول35[[#Headers],[5 طن]:[وش]],0)),INDEX(الجدول3[[5 طن]:[وش]],MATCH(بيانات!$H12,الجدول3[عمود1],0),MATCH(بيانات!$AA12,الجدول3[[#Headers],[5 طن]:[وش]],0))),"") -> 550 | AA12: 5 طن | AF12: =IF(AND(بيانات!$Y12>=24,بيانات!$U12="طن",بيانات!$AA12="جرار"),بيانات!$Z12*بيانات!$Y12,بيانات!$Z12*24) -> 13200 | AG12: =IF(AND(بيانات!$Y12>=5,AND(بيانات!$U12="طن",بيانات!$AA12="5 طن")),بيانات!$Z12*بيانات!$Y12,بيانات!$Z12*5) -> 2750 | AH12: =IF(بيانات!$U12="نقلة",بيانات!$Z12,"") -> 550
A13: =بيانات!$X13 -> 194111 | B13: 2020-02-07 | C13: رمضان حمدي | D13: 1328 | F13: العاشر | H13: العاشر | U13: طن | W13: =IFERROR(IF($U13="نقلة",$Z13,IF(AND(Y13>=SUMIF(data!$A$18:$A$21,AA13,data!$B$18:$B$21),$U13="طن"),($Y13*$Z13),$Z13*AC13)),"") -> 0 | X13: 194111 | Z13: =IFERROR(IF(بيانات!$U13="نقلة",INDEX(الجدول35[[5 طن]:[وش]],MATCH(بيانات!$H13,الجدول35[عمود1],0),MATCH(بيانات!$AA13,الجدول35[[#Headers],[5 طن]:[وش]],0)),INDEX(الجدول3[[5 طن]:[وش]],MATCH(بيانات!$H13,الجدول3[عمود1],0),MATCH(بيانات!$AA13,الجدول3[[#Headers],[5 طن]:[وش]],0))),"") -> 40 | AA13: 5 طن | AF13: =IF(AND(بيانات!$Y13>=24,بيانات!$U13="طن",بيانات!$AA13="جرار"),بيانات!$Z13*بيانات!$Y13,بيانات!$Z13*24) -> 960 | AG13: =IF(AND(بيانات!$Y13>=5,AND(بيانات!$U13="طن",بيانات!$AA13="5 طن")),بيانات!$Z13*بيانات!$Y13,بيانات!$Z13*5) -> 200 | AH13: =IF(بيانات!$U13="نقلة",بيانات!$Z13,"") -> 
A14: =بيانات!$X14 -> 193910 | B14: 2020-03-09 | C14: محمد عادل | D14: 1279 | F14: مترو | G14: 100 | H14: اكتوبر | R14: 850 | U14: طن | V14: 75 | W14: =IFERROR(IF($U14="نقلة",$Z14,IF(AND(Y14>=SUMIF(data!$A$18:$A$21,AA14,data!$B$18:$B$21),$U14="طن"),($Y14*$Z14),$Z14*AC14)),"") -> 0 | X14: 193910 | Z14: =IFERROR(IF(بيانات!$U14="نقلة",INDEX(الجدول35[[5 طن]:[وش]],MATCH(بيانات!$H14,الجدول35[عمود1],0),MATCH(بيانات!$AA14,الجدول35[[#Headers],[5 طن]:[وش]],0)),INDEX(الجدول3[[5 طن]:[وش]],MATCH(بيانات!$H14,الجدول3[عمود1],0),MATCH(بيانات!$AA14,الجدول3[[#Headers],[5 طن]:[وش]],0))),"") -> 120 | AA14: 5 طن | AF14: =IF(AND(بيانات!$Y14>=24,بيانات!$U14="طن",بيانات!$AA14="جرار"),بيانات!$Z14*بيانات!$Y14,بيانات!$Z14*24) -> 2880 | AG14: =IF(AND(بيانات!$Y14>=5,AND(بيانات!$U14="طن",بيانات!$AA14="5 طن")),بيانات!$Z14*بيانات!$Y14,بيانات!$Z14*5) -> 600 | AH14: =IF(بيانات!$U14="نقلة",بيانات!$Z14,"") -> 
A15: =بيانات!$X15 -> 193888 | B15: 2020-03-23 | C15: بشير السيد | D15: 3751 | F15: ام زغو | G15: 150 | H15: الاسكندريه | R15: 800 | U15: طن | V15: 75 | W15: =IFERROR(IF($U15="نقلة",$Z15,IF(AND(Y15>=SUMIF(data!$A$18:$A$21,AA15,data!$B$18:$B$21),$U15="طن"),($Y15*$Z15),$Z15*AC15)),"") -> 0 | X15: 193888 | Z15: =IFERROR(IF(بيانات!$U15="نقلة",INDEX(الجدول35[[5 طن]:[وش]],MATCH(بيانات!$H15,الجدول35[عمود1],0),MATCH(بيانات!$AA15,الجدول35[[#Headers],[5 طن]:[وش]],0)),INDEX(الجدول3[[5 طن]:[وش]],MATCH(بيانات!$H15,الجدول3[عمود1],0),MATCH(بيانات!$AA15,الجدول3[[#Headers],[5 طن]:[وش]],0))),"") -> 215 | AA15: 5 طن | AF15: =IF(AND(بيانات!$Y15>=24,بيانات!$U15="طن",بيانات!$AA15="جرار"),بيانات!$Z15*بيانات!$Y15,بيانات!$Z15*24) -> 5160 | AG15: =IF(AND(بيانات!$Y15>=5,AND(بيانات!$U15="طن",بيانات!$AA15="5 طن")),بيانات!$Z15*بيانات!$Y15,بيانات!$Z15*5) -> 1075 | AH15: =IF(بيانات!$U15="نقلة",بيانات!$Z15,"") -> 
A16: =بيانات!$X16 -> 194042 | B16: 2020-03-25 | C16: ابراهيم حسن | D16: 6718 | F16: قاهره | G16: 100 | H16: القاهره | S16: بروفت | U16: طن | V16: 75 | W16: =IFERROR(IF($U16="نقلة",$Z16,IF(AND(Y16>=SUMIF(data!$A$18:$A$21,AA16,data!$B$18:$B$21),$U16="طن"),($Y16*$Z16),$Z16*AC16)),"") -> 0 | X16: 194042 | Z16: =IFERROR(IF(بيانات!$U16="نقلة",INDEX(الجدول35[[5 طن]:[وش]],MATCH(بيانات!$H16,الجدول35[عمود1],0),MATCH(بيانات!$AA16,الجدول35[[#Headers],[5 طن]:[وش]],0)),INDEX(الجدول3[[5 طن]:[وش]],MATCH(بيانات!$H16,الجدول3[عمود1],0),MATCH(بيانات!$AA16,الجدول3[[#Headers],[5 طن]:[وش]],0))),"") -> 100 | AA16: 5 طن | AF16: =IF(AND(بيانات!$Y16>=24,بيانات!$U16="طن",بيانات!$AA16="جرار"),بيانات!$Z16*بيانات!$Y16,بيانات!$Z16*24) -> 2400 | AG16: =IF(AND(بيانات!$Y16>=5,AND(بيانات!$U16="طن",بيانات!$AA16="5 طن")),بيانات!$Z16*بيانات!$Y16,بيانات!$Z16*5) -> 500 | AH16: =IF(بيانات!$U16="نقلة",بيانات!$Z16,"") -> 
A17: =بيانات!$X17 -> 194131 | B17: 2020-03-26 | C17: ابراهيم محمد | D17: 6847 | F17: السويس | G17: 400 | H17: السويس | U17: طن | V17: 75 | W17: =IFERROR(IF($U17="نقلة",$Z17,IF(AND(Y17>=SUMIF(data!$A$18:$A$21,AA17,data!$B$18:$B$21),$U17="طن"),($Y17*$Z17),$Z17*AC17)),"") -> 0 | X17: 194131 | Z17: =IFERROR(IF(بيانات!$U17="نقلة",INDEX(الجدول35[[5 طن]:[وش]],MATCH(بيانات!$H17,الجدول35[عمود1],0),MATCH(بيانات!$AA17,الجدول35[[#Headers],[5 طن]:[وش]],0)),INDEX(الجدول3[[5 طن]:[وش]],MATCH(بيانات!$H17,الجدول3[عمود1],0),MATCH(بيانات!$AA17,الجدول3[[#Headers],[5 طن]:[وش]],0))),"") -> 120 | AA17: 5 طن | AF17: =IF(AND(بيانات!$Y17>=24,بيانات!$U17="طن",بيانات!$AA17="جرار"),بيانات!$Z17*بيانات!$Y17,بيانات!$Z17*24) -> 2880 | AG17: =IF(AND(بيانات!$Y17>=5,AND(بيانات!$U17="طن",بيانات!$AA17="5 طن")),بيانات!$Z17*بيانات!$Y17,بيانات!$Z17*5) -> 600 | AH17: =IF(بيانات!$U17="نقلة",بيانات!$Z17,"") -> 
A18: =بيانات!$X18 -> 194014 | B18: 2020-04-01 | C18: محمود حسن | D18: 9562 | F18: السويس | H18: السويس | U18: طن | V18: 65 | W18: =IFERROR(IF($U18="نقلة",$Z18,IF(AND(Y18>=SUMIF(data!$A$18:$A$21,AA18,data!$B$18:$B$21),$U18="طن"),($Y18*$Z18),$Z18*AC18)),"") -> 0 | X18: 194014 | Z18: =IFERROR(IF(بيانات!$U18="نقلة",INDEX(الجدول35[[5 طن]:[وش]],MATCH(بيانات!$H18,الجدول35[عمود1],0),MATCH(بيانات!$AA18,الجدول35[[#Headers],[5 طن]:[وش]],0)),INDEX(الجدول3[[5 طن]:[وش]],MATCH(بيانات!$H18,الجدول3[عمود1],0),MATCH(بيانات!$AA18,الجدول3[[#Headers],[5 طن]:[وش]],0))),"") -> 120 | AA18: 5 طن | AF18: =IF(AND(بيانات!$Y18>=24,بيانات!$U18="طن",بيانات!$AA18="جرار"),بيانات!$Z18*بيانات!$Y18,بيانات!$Z18*24) -> 2880 | AG18: =IF(AND(بيانات!$Y18>=5,AND(بيانات!$U18="طن",بيانات!$AA18="5 طن")),بيانات!$Z18*بيانات!$Y18,بيانات!$Z18*5) -> 600 | AH18: =IF(بيانات!$U18="نقلة",بيانات!$Z18,"") -> 
A19: =بيانات!$X19 -> 193906 | B19: 2020-04-02 | C19: محمود حسن | D19: 9562 | F19: الحرمين | H19: الجيزه | U19: طن | V19: 50 | W19: =IFERROR(IF($U19="نقلة",$Z19,IF(AND(Y19>=SUMIF(data!$A$18:$A$21,AA19,data!$B$18:$B$21),$U19="طن"),($Y19*$Z19),$Z19*AC19)),"") -> 0 | X19: 193906 | Z19: =IFERROR(IF(بيانات!$U19="نقلة",INDEX(الجدول35[[5 طن]:[وش]],MATCH(بيانات!$H19,الجدول35[عمود1],0),MATCH(بيانات!$AA19,الجدول35[[#Headers],[5 طن]:[وش]],0)),INDEX(الجدول3[[5 طن]:[وش]],MATCH(بيانات!$H19,الجدول3[عمود1],0),MATCH(بيانات!$AA19,الجدول3[[#Headers],[5 طن]:[وش]],0))),"") -> 110 | AA19: 5 طن | AF19: =IF(AND(بيانات!$Y19>=24,بيانات!$U19="طن",بيانات!$AA19="جرار"),بيانات!$Z19*بيانات!$Y19,بيانات!$Z19*24) -> 2640 | AG19: =IF(AND(بيانات!$Y19>=5,AND(بيانات!$U19="طن",بيانات!$AA19="5 طن")),بيانات!$Z19*بيانات!$Y19,بيانات!$Z19*5) -> 550 | AH19: =IF(بيانات!$U19="نقلة",بيانات!$Z19,"") -> 
A20: =بيانات!$X20 -> 194164 | B20: 2020-04-03 | C20: محمود حسن | D20: 9562 | F20: فوكس | G20: 100 | H20: الجيزه | U20: طن | V20: 65 | W20: =IFERROR(IF($U20="نقلة",$Z20,IF(AND(Y20>=SUMIF(data!$A$18:$A$21,AA20,data!$B$18:$B$21),$U20="طن"),($Y20*$Z20),$Z20*AC20)),"") -> 0 | X20: 194164 | Z20: =IFERROR(IF(بيانات!$U20="نقلة",INDEX(الجدول35[[5 طن]:[وش]],MATCH(بيانات!$H20,الجدول35[عمود1],0),MATCH(بيانات!$AA20,الجدول35[[#Headers],[5 طن]:[وش]],0)),INDEX(الجدول3[[5 طن]:[وش]],MATCH(بيانات!$H20,الجدول3[عمود1],0),MATCH(بيانات!$AA20,الجدول3[[#Headers],[5 طن]:[وش]],0))),"") -> 110 | AA20: 5 طن | AF20: =IF(AND(بيانات!$Y20>=24,بيانات!$U20="طن",بيانات!$AA20="جرار"),بيانات!$Z20*بيانات!$Y20,بيانات!$Z20*24) -> 2640 | AG20: =IF(AND(بيانات!$Y20>=5,AND(بيانات!$U20="طن",بيانات!$AA20="5 طن")),بيانات!$Z20*بيانات!$Y20,بيانات!$Z20*5) -> 550 | AH20: =IF(بيانات!$U20="نقلة",بيانات!$Z20,"") -> 
A21: =بيانات!$X21 -> 193930 | B21: 2020-05-30 | C21: عبده السيد | D21: 4217 | F21: ابيس | H21: الاسكندريه | U21: طن | V21: 80 | W21: =IFERROR(IF($U21="نقلة",$Z21,IF(AND(Y21>=SUMIF(data!$A$18:$A$21,AA21,data!$B$18:$B$21),$U21="طن"),($Y21*$Z21),$Z21*AC21)),"") -> 0 | X21: 193930 | Z21: =IFERROR(IF(بيانات!$U21="نقلة",INDEX(الجدول35[[5 طن]:[وش]],MATCH(بيانات!$H21,الجدول35[عمود1],0),MATCH(بيانات!$AA21,الجدول35[[#Headers],[5 طن]:[وش]],0)),INDEX(الجدول3[[5 طن]:[وش]],MATCH(بيانات!$H21,الجدول3[عمود1],0),MATCH(بيانات!$AA21,الجدول3[[#Headers],[5 طن]:[وش]],0))),"") -> 215 | AA21: 5 طن | AF21: =IF(AND(بيانات!$Y21>=24,بيانات!$U21="طن",بيانات!$AA21="جرار"),بيانات!$Z21*بيانات!$Y21,بيانات!$Z21*24) -> 5160 | AG21: =IF(AND(بيانات!$Y21>=5,AND(بيانات!$U21="طن",بيانات!$AA21="5 طن")),بيانات!$Z21*بيانات!$Y21,بيانات!$Z21*5) -> 1075 | AH21: =IF(بيانات!$U21="نقلة",بيانات!$Z21,"") -> 
A22: =بيانات!$X22 -> 194143 | B22: 2020-05-31 | C22: عبده السيد | D22: 4217 | F22: السويس | G22: 250 | H22: السويس | U22: طن | V22: 75 | W22: =IFERROR(IF($U22="نقلة",$Z22,IF(AND(Y22>=SUMIF(data!$A$18:$A$21,AA22,data!$B$18:$B$21),$U22="طن"),($Y22*$Z22),$Z22*AC22)),"") -> 0 | X22: 194143 | Z22: =IFERROR(IF(بيانات!$U22="نقلة",INDEX(الجدول35[[5 طن]:[وش]],MATCH(بيانات!$H22,الجدول35[عمود1],0),MATCH(بيانات!$AA22,الجدول35[[#Headers],[5 طن]:[وش]],0)),INDEX(الجدول3[[5 طن]:[وش]],MATCH(بيانات!$H22,الجدول3[عمود1],0),MATCH(بيانات!$AA22,الجدول3[[#Headers],[5 طن]:[وش]],0))),"") -> 120 | AA22: 5 طن | AF22: =IF(AND(بيانات!$Y22>=24,بيانات!$U22="طن",بيانات!$AA22="جرار"),بيانات!$Z22*بيانات!$Y22,بيانات!$Z22*24) -> 2880 | AG22: =IF(AND(بيانات!$Y22>=5,AND(بيانات!$U22="طن",بيانات!$AA22="5 طن")),بيانات!$Z22*بيانات!$Y22,بيانات!$Z22*5) -> 600 | AH22: =IF(بيانات!$U22="نقلة",بيانات!$Z22,"") -> 
A23: =بيانات!$X23 -> 194143 | B23: 2020-05-31 | C23: فريد محمد | F23: الوليد | G23: 300 | H23: الجيزه | U23: طن | V23: 60 | W23: =IFERROR(IF($U23="نقلة",$Z23,IF(AND(Y23>=SUMIF(data!$A$18:$A$21,AA23,data!$B$18:$B$21),$U23="طن"),($Y23*$Z23),$Z23*AC23)),"") -> 0 | X23: 194143 | Z23: =IFERROR(IF(بيانات!$U23="نقلة",INDEX(الجدول35[[5 طن]:[وش]],MATCH(بيانات!$H23,الجدول35[عمود1],0),MATCH(بيانات!$AA23,الجدول35[[#Headers],[5 طن]:[وش]],0)),INDEX(الجدول3[[5 طن]:[وش]],MATCH(بيانات!$H23,الجدول3[عمود1],0),MATCH(بيانات!$AA23,الجدول3[[#Headers],[5 طن]:[وش]],0))),"") -> 110 | AA23: 5 طن | AF23: =IF(AND(بيانات!$Y23>=24,بيانات!$U23="طن",بيانات!$AA23="جرار"),بيانات!$Z23*بيانات!$Y23,بيانات!$Z23*24) -> 2640 | AG23: =IF(AND(بيانات!$Y23>=5,AND(بيانات!$U23="طن",بيانات!$AA23="5 طن")),بيانات!$Z23*بيانات!$Y23,بيانات!$Z23*5) -> 550 | AH23: =IF(بيانات!$U23="نقلة",بيانات!$Z23,"") -> 
A24: =بيانات!$X24 -> 278133 | B24: 2020-05-31 | C24: اسلام محمد | D24: 1487 | F24: مكرونه اكتوبر | H24: اكتوبر | U24: طن | V24: 75 | W24: =IFERROR(IF($U24="نقلة",$Z24,IF(AND(Y24>=SUMIF(data!$A$18:$A$21,AA24,data!$B$18:$B$21),$U24="طن"),($Y24*$Z24),$Z24*AC24)),"") -> 0 | X24: 278133 | Z24: =IFERROR(IF(بيانات!$U24="نقلة",INDEX(الجدول35[[5 طن]:[وش]],MATCH(بيانات!$H24,الجدول35[عمود1],0),MATCH(بيانات!$AA24,الجدول35[[#Headers],[5 طن]:[وش]],0)),INDEX(الجدول3[[5 طن]:[وش]],MATCH(بيانات!$H24,الجدول3[عمود1],0),MATCH(بيانات!$AA24,الجدول3[[#Headers],[5 طن]:[وش]],0))),"") -> 120 | AA24: 5 طن | AF24: =IF(AND(بيانات!$Y24>=24,بيانات!$U24="طن",بيانات!$AA24="جرار"),بيانات!$Z24*بيانات!$Y24,بيانات!$Z24*24) -> 2880 | AG24: =IF(AND(بيانات!$Y24>=5,AND(بيانات!$U24="طن",بيانات!$AA24="5 طن")),بيانات!$Z24*بيانات!$Y24,بيانات!$Z24*5) -> 600 | AH24: =IF(بيانات!$U24="نقلة",بيانات!$Z24,"") -> 
A25: =بيانات!$X25 -> 194286/7 | B25: 2020-06-01 | C25: جمال عبدالحكيم | D25: 4327 | F25: اسكندريه | G25: 700 | H25: الاسكندريه | U25: طن | V25: 80 | W25: =IFERROR(IF($U25="نقلة",$Z25,IF(AND(Y25>=SUMIF(data!$A$18:$A$21,AA25,data!$B$18:$B$21),$U25="طن"),($Y25*$Z25),$Z25*AC25)),"") -> 0 | X25: 194286/7 | Z25: =IFERROR(IF(بيانات!$U25="نقلة",INDEX(الجدول35[[5 طن]:[وش]],MATCH(بيانات!$H25,الجدول35[عمود1],0),MATCH(بيانات!$AA25,الجدول35[[#Headers],[5 طن]:[وش]],0)),INDEX(الجدول3[[5 طن]:[وش]],MATCH(بيانات!$H25,الجدول3[عمود1],0),MATCH(بيانات!$AA25,الجدول3[[#Headers],[5 طن]:[وش]],0))),"") -> 215 | AA25: 5 طن | AF25: =IF(AND(بيانات!$Y25>=24,بيانات!$U25="طن",بيانات!$AA25="جرار"),بيانات!$Z25*بيانات!$Y25,بيانات!$Z25*24) -> 5160 | AG25: =IF(AND(بيانات!$Y25>=5,AND(بيانات!$U25="طن",بيانات!$AA25="5 طن")),بيانات!$Z25*بيانات!$Y25,بيانات!$Z25*5) -> 1075 | AH25: =IF(بيانات!$U25="نقلة",بيانات!$Z25,"") -> 
A26: =بيانات!$X26 -> 193948 | B26: 2020-05-30 | C26: جمال عبدالناصر | D26: 8152 | F26: الجالي | G26: 40 | H26: الجيزه | U26: طن | V26: 60 | W26: =IFERROR(IF($U26="نقلة",$Z26,IF(AND(Y26>=SUMIF(data!$A$18:$A$21,AA26,data!$B$18:$B$21),$U26="طن"),($Y26*$Z26),$Z26*AC26)),"") -> 0 | X26: 193948 | Z26: =IFERROR(IF(بيانات!$U26="نقلة",INDEX(الجدول35[[5 طن]:[وش]],MATCH(بيانات!$H26,الجدول35[عمود1],0),MATCH(بيانات!$AA26,الجدول35[[#Headers],[5 طن]:[وش]],0)),INDEX(الجدول3[[5 طن]:[وش]],MATCH(بيانات!$H26,الجدول3[عمود1],0),MATCH(بيانات!$AA26,الجدول3[[#Headers],[5 طن]:[وش]],0))),"") -> 110 | AA26: 5 طن | AF26: =IF(AND(بيانات!$Y26>=24,بيانات!$U26="طن",بيانات!$AA26="جرار"),بيانات!$Z26*بيانات!$Y26,بيانات!$Z26*24) -> 2640 | AG26: =IF(AND(بيانات!$Y26>=5,AND(بيانات!$U26="طن",بيانات!$AA26="5 طن")),بيانات!$Z26*بيانات!$Y26,بيانات!$Z26*5) -> 550 | AH26: =IF(بيانات!$U26="نقلة",بيانات!$Z26,"") -> 
A27: =بيانات!$X27 -> 194223 | B27: 2020-06-01 | C27: جمال عبدالناصر | D27: 8152 | F27: اسكندريه | H27: الاسكندريه | U27: طن | V27: 65 | W27: =IFERROR(IF($U27="نقلة",$Z27,IF(AND(Y27>=SUMIF(data!$A$18:$A$21,AA27,data!$B$18:$B$21),$U27="طن"),($Y27*$Z27),$Z27*AC27)),"") -> 0 | X27: 194223 | Z27: =IFERROR(IF(بيانات!$U27="نقلة",INDEX(الجدول35[[5 طن]:[وش]],MATCH(بيانات!$H27,الجدول35[عمود1],0),MATCH(بيانات!$AA27,الجدول35[[#Headers],[5 طن]:[وش]],0)),INDEX(الجدول3[[5 طن]:[وش]],MATCH(بيانات!$H27,الجدول3[عمود1],0),MATCH(بيانات!$AA27,الجدول3[[#Headers],[5 طن]:[وش]],0))),"") -> 215 | AA27: 5 طن | AF27: =IF(AND(بيانات!$Y27>=24,بيانات!$U27="طن",بيانات!$AA27="جرار"),بيانات!$Z27*بيانات!$Y27,بيانات!$Z27*24) -> 5160 | AG27: =IF(AND(بيانات!$Y27>=5,AND(بيانات!$U27="طن",بيانات!$AA27="5 طن")),بيانات!$Z27*بيانات!$Y27,بيانات!$Z27*5) -> 1075 | AH27: =IF(بيانات!$U27="نقلة",بيانات!$Z27,"") -> 
A28: =بيانات!$X28 -> 194197 | B28: 2020-06-01 | C28: محمد صلاح | D28: 8576 | F28: ام زغو | G28: 150 | H28: الاسكندريه | R28: 1000 | U28: طن | V28: 65 | W28: =IFERROR(IF($U28="نقلة",$Z28,IF(AND(Y28>=SUMIF(data!$A$18:$A$21,AA28,data!$B$18:$B$21),$U28="طن"),($Y28*$Z28),$Z28*AC28)),"") -> 0 | X28: 194197 | Z28: =IFERROR(IF(بيانات!$U28="نقلة",INDEX(الجدول35[[5 طن]:[وش]],MATCH(بيانات!$H28,الجدول35[عمود1],0),MATCH(بيانات!$AA28,الجدول35[[#Headers],[5 طن]:[وش]],0)),INDEX(الجدول3[[5 طن]:[وش]],MATCH(بيانات!$H28,الجدول3[عمود1],0),MATCH(بيانات!$AA28,الجدول3[[#Headers],[5 طن]:[وش]],0))),"") -> 215 | AA28: 5 طن | AF28: =IF(AND(بيانات!$Y28>=24,بيانات!$U28="طن",بيانات!$AA28="جرار"),بيانات!$Z28*بيانات!$Y28,بيانات!$Z28*24) -> 5160 | AG28: =IF(AND(بيانات!$Y28>=5,AND(بيانات!$U28="طن",بيانات!$AA28="5 طن")),بيانات!$Z28*بيانات!$Y28,بيانات!$Z28*5) -> 1075 | AH28: =IF(بيانات!$U28="نقلة",بيانات!$Z28,"") -> 
A29: =بيانات!$X29 -> 193905 | B29: 2020-06-01 | C29: احمد رافت | D29: 7918 | F29: مترو | H29: اكتوبر | U29: طن | V29: 65 | W29: =IFERROR(IF($U29="نقلة",$Z29,IF(AND(Y29>=SUMIF(data!$A$18:$A$21,AA29,data!$B$18:$B$21),$U29="طن"),($Y29*$Z29),$Z29*AC29)),"") -> 0 | X29: 193905 | Z29: =IFERROR(IF(بيانات!$U29="نقلة",INDEX(الجدول35[[5 طن]:[وش]],MATCH(بيانات!$H29,الجدول35[عمود1],0),MATCH(بيانات!$AA29,الجدول35[[#Headers],[5 طن]:[وش]],0)),INDEX(الجدول3[[5 طن]:[وش]],MATCH(بيانات!$H29,الجدول3[عمود1],0),MATCH(بيانات!$AA29,الجدول3[[#Headers],[5 طن]:[وش]],0))),"") -> 120 | AA29: 5 طن | AF29: =IF(AND(بيانات!$Y29>=24,بيانات!$U29="طن",بيانات!$AA29="جرار"),بيانات!$Z29*بيانات!$Y29,بيانات!$Z29*24) -> 2880 | AG29: =IF(AND(بيانات!$Y29>=5,AND(بيانات!$U29="طن",بيانات!$AA29="5 طن")),بيانات!$Z29*بيانات!$Y29,بيانات!$Z29*5) -> 600 | AH29: =IF(بيانات!$U29="نقلة",بيانات!$Z29,"") -> 
A30: =بيانات!$X30 -> 194199 | B30: 2020-06-01 | C30: احمد رافت | D30: 7918 | F30: ابيس | G30: 150 | H30: الاسكندريه | R30: 1000 | U30: طن | V30: 65 | W30: =IFERROR(IF($U30="نقلة",$Z30,IF(AND(Y30>=SUMIF(data!$A$18:$A$21,AA30,data!$B$18:$B$21),$U30="طن"),($Y30*$Z30),$Z30*AC30)),"") -> 0 | X30: 194199 | Z30: =IFERROR(IF(بيانات!$U30="نقلة",INDEX(الجدول35[[5 طن]:[وش]],MATCH(بيانات!$H30,الجدول35[عمود1],0),MATCH(بيانات!$AA30,الجدول35[[#Headers],[5 طن]:[وش]],0)),INDEX(الجدول3[[5 طن]:[وش]],MATCH(بيانات!$H30,الجدول3[عمود1],0),MATCH(بيانات!$AA30,الجدول3[[#Headers],[5 طن]:[وش]],0))),"") -> 215 | AA30: 5 طن | AF30: =IF(AND(بيانات!$Y30>=24,بيانات!$U30="طن",بيانات!$AA30="جرار"),بيانات!$Z30*بيانات!$Y30,بيانات!$Z30*24) -> 5160 | AG30: =IF(AND(بيانات!$Y30>=5,AND(بيانات!$U30="طن",بيانات!$AA30="5 طن")),بيانات!$Z30*بيانات!$Y30,بيانات!$Z30*5) -> 1075 | AH30: =IF(بيانات!$U30="نقلة",بيانات!$Z30,"") -> 
A31: =بيانات!$X31 -> 194198 | B31: 2020-06-01 | C31: رمضان حمدي | D31: 1328 | F31: العاشر | G31: 100 | H31: العاشر | U31: طن | W31: =IFERROR(IF($U31="نقلة",$Z31,IF(AND(Y31>=SUMIF(data!$A$18:$A$21,AA31,data!$B$18:$B$21),$U31="طن"),($Y31*$Z31),$Z31*AC31)),"") -> 0 | X31: 194198 | Z31: =IFERROR(IF(بيانات!$U31="نقلة",INDEX(الجدول35[[5 طن]:[وش]],MATCH(بيانات!$H31,الجدول35[عمود1],0),MATCH(بيانات!$AA31,الجدول35[[#Headers],[5 طن]:[وش]],0)),INDEX(الجدول3[[5 طن]:[وش]],MATCH(بيانات!$H31,الجدول3[عمود1],0),MATCH(بيانات!$AA31,الجدول3[[#Headers],[5 طن]:[وش]],0))),"") -> 40 | AA31: 5 طن | AF31: =IF(AND(بيانات!$Y31>=24,بيانات!$U31="طن",بيانات!$AA31="جرار"),بيانات!$Z31*بيانات!$Y31,بيانات!$Z31*24) -> 960 | AG31: =IF(AND(بيانات!$Y31>=5,AND(بيانات!$U31="طن",بيانات!$AA31="5 طن")),بيانات!$Z31*بيانات!$Y31,بيانات!$Z31*5) -> 200 | AH31: =IF(بيانات!$U31="نقلة",بيانات!$Z31,"") -> 
A32: =بيانات!$X32 -> 194025 | B32: 2020-05-31 | C32: محمد عادل | D32: 1279 | F32: السويس | H32: السويس | U32: طن | V32: 75 | W32: =IFERROR(IF($U32="نقلة",$Z32,IF(AND(Y32>=SUMIF(data!$A$18:$A$21,AA32,data!$B$18:$B$21),$U32="طن"),($Y32*$Z32),$Z32*AC32)),"") -> 0 | X32: 194025 | Z32: =IFERROR(IF(بيانات!$U32="نقلة",INDEX(الجدول35[[5 طن]:[وش]],MATCH(بيانات!$H32,الجدول35[عمود1],0),MATCH(بيانات!$AA32,الجدول35[[#Headers],[5 طن]:[وش]],0)),INDEX(الجدول3[[5 طن]:[وش]],MATCH(بيانات!$H32,الجدول3[عمود1],0),MATCH(بيانات!$AA32,الجدول3[[#Headers],[5 طن]:[وش]],0))),"") -> 120 | AA32: 5 طن | AF32: =IF(AND(بيانات!$Y32>=24,بيانات!$U32="طن",بيانات!$AA32="جرار"),بيانات!$Z32*بيانات!$Y32,بيانات!$Z32*24) -> 2880 | AG32: =IF(AND(بيانات!$Y32>=5,AND(بيانات!$U32="طن",بيانات!$AA32="5 طن")),بيانات!$Z32*بيانات!$Y32,بيانات!$Z32*5) -> 600 | AH32: =IF(بيانات!$U32="نقلة",بيانات!$Z32,"") -> 
A33: =بيانات!$X33 -> 194078 | B33: 2020-06-01 | C33: محمد عادل | D33: 1279 | F33: مترو | H33: اكتوبر | U33: طن | V33: 75 | W33: =IFERROR(IF($U33="نقلة",$Z33,IF(AND(Y33>=SUMIF(data!$A$18:$A$21,AA33,data!$B$18:$B$21),$U33="طن"),($Y33*$Z33),$Z33*AC33)),"") -> 0 | X33: 194078 | Z33: =IFERROR(IF(بيانات!$U33="نقلة",INDEX(الجدول35[[5 طن]:[وش]],MATCH(بيانات!$H33,الجدول35[عمود1],0),MATCH(بيانات!$AA33,الجدول35[[#Headers],[5 طن]:[وش]],0)),INDEX(الجدول3[[5 طن]:[وش]],MATCH(بيانات!$H33,الجدول3[عمود1],0),MATCH(بيانات!$AA33,الجدول3[[#Headers],[5 طن]:[وش]],0))),"") -> 120 | AA33: 5 طن | AF33: =IF(AND(بيانات!$Y33>=24,بيانات!$U33="طن",بيانات!$AA33="جرار"),بيانات!$Z33*بيانات!$Y33,بيانات!$Z33*24) -> 2880 | AG33: =IF(AND(بيانات!$Y33>=5,AND(بيانات!$U33="طن",بيانات!$AA33="5 طن")),بيانات!$Z33*بيانات!$Y33,بيانات!$Z33*5) -> 600 | AH33: =IF(بيانات!$U33="نقلة",بيانات!$Z33,"") -> 
A34: =بيانات!$X34 -> 194227 | B34: 2020-06-01 | C34: محمد عادل | D34: 1279 | F34: سوق دوت كوم | G34: 100 | H34: القاهره | U34: طن | W34: =IFERROR(IF($U34="نقلة",$Z34,IF(AND(Y34>=SUMIF(data!$A$18:$A$21,AA34,data!$B$18:$B$21),$U34="طن"),($Y34*$Z34),$Z34*AC34)),"") -> 0 | X34: 194227 | Z34: =IFERROR(IF(بيانات!$U34="نقلة",INDEX(الجدول35[[5 طن]:[وش]],MATCH(بيانات!$H34,الجدول35[عمود1],0),MATCH(بيانات!$AA34,الجدول35[[#Headers],[5 طن]:[وش]],0)),INDEX(الجدول3[[5 طن]:[وش]],MATCH(بيانات!$H34,الجدول3[عمود1],0),MATCH(بيانات!$AA34,الجدول3[[#Headers],[5 طن]:[وش]],0))),"") -> 100 | AA34: 5 طن | AF34: =IF(AND(بيانات!$Y34>=24,بيانات!$U34="طن",بيانات!$AA34="جرار"),بيانات!$Z34*بيانات!$Y34,بيانات!$Z34*24) -> 2400 | AG34: =IF(AND(بيانات!$Y34>=5,AND(بيانات!$U34="طن",بيانات!$AA34="5 طن")),بيانات!$Z34*بيانات!$Y34,بيانات!$Z34*5) -> 500 | AH34: =IF(بيانات!$U34="نقلة",بيانات!$Z34,"") -> 
A35: =بيانات!$X35 -> 194304/5 | B35: 2020-06-01 | C35: محمود حسن | D35: 9562 | F35: القاهره | G35: 100 | H35: القاهره | U35: طن | V35: 50 | W35: =IFERROR(IF($U35="نقلة",$Z35,IF(AND(Y35>=SUMIF(data!$A$18:$A$21,AA35,data!$B$18:$B$21),$U35="طن"),($Y35*$Z35),$Z35*AC35)),"") -> 0 | X35: 194304/5 | Z35: =IFERROR(IF(بيانات!$U35="نقلة",INDEX(الجدول35[[5 طن]:[وش]],MATCH(بيانات!$H35,الجدول35[عمود1],0),MATCH(بيانات!$AA35,الجدول35[[#Headers],[5 طن]:[وش]],0)),INDEX(الجدول3[[5 طن]:[وش]],MATCH(بيانات!$H35,الجدول3[عمود1],0),MATCH(بيانات!$AA35,الجدول3[[#Headers],[5 طن]:[وش]],0))),"") -> 100 | AA35: 5 طن | AF35: =IF(AND(بيانات!$Y35>=24,بيانات!$U35="طن",بيانات!$AA35="جرار"),بيانات!$Z35*بيانات!$Y35,بيانات!$Z35*24) -> 2400 | AG35: =IF(AND(بيانات!$Y35>=5,AND(بيانات!$U35="طن",بيانات!$AA35="5 طن")),بيانات!$Z35*بيانات!$Y35,بيانات!$Z35*5) -> 500 | AH35: =IF(بيانات!$U35="نقلة",بيانات!$Z35,"") -> 
A36: =بيانات!$X36 -> 194311 | B36: 2020-06-01 | C36: رمضان محمود | D36: 7293 | F36: جيزه | G36: 100 | H36: الجيزه | U36: طن | V36: 75 | W36: =IFERROR(IF($U36="نقلة",$Z36,IF(AND(Y36>=SUMIF(data!$A$18:$A$21,AA36,data!$B$18:$B$21),$U36="طن"),($Y36*$Z36),$Z36*AC36)),"") -> 0 | X36: 194311 | Z36: =IFERROR(IF(بيانات!$U36="نقلة",INDEX(الجدول35[[5 طن]:[وش]],MATCH(بيانات!$H36,الجدول35[عمود1],0),MATCH(بيانات!$AA36,الجدول35[[#Headers],[5 طن]:[وش]],0)),INDEX(الجدول3[[5 طن]:[وش]],MATCH(بيانات!$H36,الجدول3[عمود1],0),MATCH(بيانات!$AA36,الجدول3[[#Headers],[5 طن]:[وش]],0))),"") -> 110 | AA36: 5 طن | AF36: =IF(AND(بيانات!$Y36>=24,بيانات!$U36="طن",بيانات!$AA36="جرار"),بيانات!$Z36*بيانات!$Y36,بيانات!$Z36*24) -> 2640 | AG36: =IF(AND(بيانات!$Y36>=5,AND(بيانات!$U36="طن",بيانات!$AA36="5 طن")),بيانات!$Z36*بيانات!$Y36,بيانات!$Z36*5) -> 550 | AH36: =IF(بيانات!$U36="نقلة",بيانات!$Z36,"") -> 
A37: =بيانات!$X37 -> 0 | B37: 2020-06-01 | C37: فريد محمد | F37: اسكندريه | G37: 700 | U37: طن | W37: =IFERROR(IF($U37="نقلة",$Z37,IF(AND(Y37>=SUMIF(data!$A$18:$A$21,AA37,data!$B$18:$B$21),$U37="طن"),($Y37*$Z37),$Z37*AC37)),"") ->  | Z37: =IFERROR(IF(بيانات!$U37="نقلة",INDEX(الجدول35[[5 طن]:[وش]],MATCH(بيانات!$H37,الجدول35[عمود1],0),MATCH(بيانات!$AA37,الجدول35[[#Headers],[5 طن]:[وش]],0)),INDEX(الجدول3[[5 طن]:[وش]],MATCH(بيانات!$H37,الجدول3[عمود1],0),MATCH(بيانات!$AA37,الجدول3[[#Headers],[5 طن]:[وش]],0))),"") ->  | AA37: 5 طن | AF37: =IF(AND(بيانات!$Y37>=24,بيانات!$U37="طن",بيانات!$AA37="جرار"),بيانات!$Z37*بيانات!$Y37,بيانات!$Z37*24) ->  | AG37: =IF(AND(بيانات!$Y37>=5,AND(بيانات!$U37="طن",بيانات!$AA37="5 طن")),بيانات!$Z37*بيانات!$Y37,بيانات!$Z37*5) ->  | AH37: =IF(بيانات!$U37="نقلة",بيانات!$Z37,"") -> 
A38: =بيانات!$X38 -> 278422 | B38: 2020-06-01 | C38: اسلام محمد | D38: 1487 | F38: مكرونه اكتوبر | H38: اكتوبر | U38: طن | V38: 75 | W38: =IFERROR(IF($U38="نقلة",$Z38,IF(AND(Y38>=SUMIF(data!$A$18:$A$21,AA38,data!$B$18:$B$21),$U38="طن"),($Y38*$Z38),$Z38*AC38)),"") -> 0 | X38: 278422 | Z38: =IFERROR(IF(بيانات!$U38="نقلة",INDEX(الجدول35[[5 طن]:[وش]],MATCH(بيانات!$H38,الجدول35[عمود1],0),MATCH(بيانات!$AA38,الجدول35[[#Headers],[5 طن]:[وش]],0)),INDEX(الجدول3[[5 طن]:[وش]],MATCH(بيانات!$H38,الجدول3[عمود1],0),MATCH(بيانات!$AA38,الجدول3[[#Headers],[5 طن]:[وش]],0))),"") -> 120 | AA38: 5 طن | AF38: =IF(AND(بيانات!$Y38>=24,بيانات!$U38="طن",بيانات!$AA38="جرار"),بيانات!$Z38*بيانات!$Y38,بيانات!$Z38*24) -> 2880 | AG38: =IF(AND(بيانات!$Y38>=5,AND(بيانات!$U38="طن",بيانات!$AA38="5 طن")),بيانات!$Z38*بيانات!$Y38,بيانات!$Z38*5) -> 600 | AH38: =IF(بيانات!$U38="نقلة",بيانات!$Z38,"") -> 
A39: =بيانات!$X39 -> 194290 | B39: 2020-06-01 | C39: اسلام محمد | D39: 1487 | F39: هايبر اكتوبر | G39: 600 | H39: اكتوبر | U39: طن | V39: 75 | W39: =IFERROR(IF($U39="نقلة",$Z39,IF(AND(Y39>=SUMIF(data!$A$18:$A$21,AA39,data!$B$18:$B$21),$U39="طن"),($Y39*$Z39),$Z39*AC39)),"") -> 0 | X39: 194290 | Z39: =IFERROR(IF(بيانات!$U39="نقلة",INDEX(الجدول35[[5 طن]:[وش]],MATCH(بيانات!$H39,الجدول35[عمود1],0),MATCH(بيانات!$AA39,الجدول35[[#Headers],[5 طن]:[وش]],0)),INDEX(الجدول3[[5 طن]:[وش]],MATCH(بيانات!$H39,الجدول3[عمود1],0),MATCH(بيانات!$AA39,الجدول3[[#Headers],[5 طن]:[وش]],0))),"") -> 120 | AA39: 5 طن | AF39: =IF(AND(بيانات!$Y39>=24,بيانات!$U39="طن",بيانات!$AA39="جرار"),بيانات!$Z39*بيانات!$Y39,بيانات!$Z39*24) -> 2880 | AG39: =IF(AND(بيانات!$Y39>=5,AND(بيانات!$U39="طن",بيانات!$AA39="5 طن")),بيانات!$Z39*بيانات!$Y39,بيانات!$Z39*5) -> 600 | AH39: =IF(بيانات!$U39="نقلة",بيانات!$Z39,"") -> 
A40: =بيانات!$X40 -> 0 | B40: 2020-06-01 | C40: ابراهيم محمد | F40: قاهره | G40: 300 | U40: طن | W40: =IFERROR(IF($U40="نقلة",$Z40,IF(AND(Y40>=SUMIF(data!$A$18:$A$21,AA40,data!$B$18:$B$21),$U40="طن"),($Y40*$Z40),$Z40*AC40)),"") ->  | Z40: =IFERROR(IF(بيانات!$U40="نقلة",INDEX(الجدول35[[5 طن]:[وش]],MATCH(بيانات!$H40,الجدول35[عمود1],0),MATCH(بيانات!$AA40,الجدول35[[#Headers],[5 طن]:[وش]],0)),INDEX(الجدول3[[5 طن]:[وش]],MATCH(بيانات!$H40,الجدول3[عمود1],0),MATCH(بيانات!$AA40,الجدول3[[#Headers],[5 طن]:[وش]],0))),"") ->  | AA40: 5 طن | AF40: =IF(AND(بيانات!$Y40>=24,بيانات!$U40="طن",بيانات!$AA40="جرار"),بيانات!$Z40*بيانات!$Y40,بيانات!$Z40*24) ->  | AG40: =IF(AND(بيانات!$Y40>=5,AND(بيانات!$U40="طن",بيانات!$AA40="5 طن")),بيانات!$Z40*بيانات!$Y40,بيانات!$Z40*5) ->  | AH40: =IF(بيانات!$U40="نقلة",بيانات!$Z40,"") -> 
A41: =بيانات!$X41 -> 194295 | B41: 2020-06-01 | C41: علاء شحاته | D41: 7462 | F41: كفرالشيخ | G41: 600 | H41: كفر الشيخ | U41: طن | V41: 80 | W41: =IFERROR(IF($U41="نقلة",$Z41,IF(AND(Y41>=SUMIF(data!$A$18:$A$21,AA41,data!$B$18:$B$21),$U41="طن"),($Y41*$Z41),$Z41*AC41)),"") ->  | X41: 194295 | Z41: =IFERROR(IF(بيانات!$U41="نقلة",INDEX(الجدول35[[5 طن]:[وش]],MATCH(بيانات!$H41,الجدول35[عمود1],0),MATCH(بيانات!$AA41,الجدول35[[#Headers],[5 طن]:[وش]],0)),INDEX(الجدول3[[5 طن]:[وش]],MATCH(بيانات!$H41,الجدول3[عمود1],0),MATCH(بيانات!$AA41,الجدول3[[#Headers],[5 طن]:[وش]],0))),"") ->  | AA41: 5 طن | AF41: =IF(AND(بيانات!$Y41>=24,بيانات!$U41="طن",بيانات!$AA41="جرار"),بيانات!$Z41*بيانات!$Y41,بيانات!$Z41*24) ->  | AG41: =IF(AND(بيانات!$Y41>=5,AND(بيانات!$U41="طن",بيانات!$AA41="5 طن")),بيانات!$Z41*بيانات!$Y41,بيانات!$Z41*5) ->  | AH41: =IF(بيانات!$U41="نقلة",بيانات!$Z41,"") -> 
A42: =بيانات!$X42 -> 0 | B42: 2020-06-01 | C42: عبده السيد | F42: قاهره | G42: 100 | U42: طن | W42: =IFERROR(IF($U42="نقلة",$Z42,IF(AND(Y42>=SUMIF(data!$A$18:$A$21,AA42,data!$B$18:$B$21),$U42="طن"),($Y42*$Z42),$Z42*AC42)),"") ->  | Z42: =IFERROR(IF(بيانات!$U42="نقلة",INDEX(الجدول35[[5 طن]:[وش]],MATCH(بيانات!$H42,الجدول35[عمود1],0),MATCH(بيانات!$AA42,الجدول35[[#Headers],[5 طن]:[وش]],0)),INDEX(الجدول3[[5 طن]:[وش]],MATCH(بيانات!$H42,الجدول3[عمود1],0),MATCH(بيانات!$AA42,الجدول3[[#Headers],[5 طن]:[وش]],0))),"") ->  | AA42: 5 طن | AF42: =IF(AND(بيانات!$Y42>=24,بيانات!$U42="طن",بيانات!$AA42="جرار"),بيانات!$Z42*بيانات!$Y42,بيانات!$Z42*24) ->  | AG42: =IF(AND(بيانات!$Y42>=5,AND(بيانات!$U42="طن",بيانات!$AA42="5 طن")),بيانات!$Z42*بيانات!$Y42,بيانات!$Z42*5) ->  | AH42: =IF(بيانات!$U42="نقلة",بيانات!$Z42,"") -> 
A43: =بيانات!$X43 -> 194134 | B43: 2020-06-01 | C43: ابراهيم حسن | D43: 6718 | F43: القاهره | H43: القاهره | U43: طن | V43: 75 | W43: =IFERROR(IF($U43="نقلة",$Z43,IF(AND(Y43>=SUMIF(data!$A$18:$A$21,AA43,data!$B$18:$B$21),$U43="طن"),($Y43*$Z43),$Z43*AC43)),"") -> 0 | X43: 194134 | Z43: =IFERROR(IF(بيانات!$U43="نقلة",INDEX(الجدول35[[5 طن]:[وش]],MATCH(بيانات!$H43,الجدول35[عمود1],0),MATCH(بيانات!$AA43,الجدول35[[#Headers],[5 طن]:[وش]],0)),INDEX(الجدول3[[5 طن]:[وش]],MATCH(بيانات!$H43,الجدول3[عمود1],0),MATCH(بيانات!$AA43,الجدول3[[#Headers],[5 طن]:[وش]],0))),"") -> 100 | AA43: 5 طن | AF43: =IF(AND(بيانات!$Y43>=24,بيانات!$U43="طن",بيانات!$AA43="جرار"),بيانات!$Z43*بيانات!$Y43,بيانات!$Z43*24) -> 2400 | AG43: =IF(AND(بيانات!$Y43>=5,AND(بيانات!$U43="طن",بيانات!$AA43="5 طن")),بيانات!$Z43*بيانات!$Y43,بيانات!$Z43*5) -> 500 | AH43: =IF(بيانات!$U43="نقلة",بيانات!$Z43,"") -> 
A44: =بيانات!$X44 -> 194276 | B44: 2020-06-01 | C44: ابراهيم حسن | D44: 6718 | F44: الفرجاني | G44: 100 | H44: القاهره | U44: طن | V44: 75 | W44: =IFERROR(IF($U44="نقلة",$Z44,IF(AND(Y44>=SUMIF(data!$A$18:$A$21,AA44,data!$B$18:$B$21),$U44="طن"),($Y44*$Z44),$Z44*AC44)),"") -> 0 | X44: 194276 | Z44: =IFERROR(IF(بيانات!$U44="نقلة",INDEX(الجدول35[[5 طن]:[وش]],MATCH(بيانات!$H44,الجدول35[عمود1],0),MATCH(بيانات!$AA44,الجدول35[[#Headers],[5 طن]:[وش]],0)),INDEX(الجدول3[[5 طن]:[وش]],MATCH(بيانات!$H44,الجدول3[عمود1],0),MATCH(بيانات!$AA44,الجدول3[[#Headers],[5 طن]:[وش]],0))),"") -> 100 | AA44: 5 طن | AF44: =IF(AND(بيانات!$Y44>=24,بيانات!$U44="طن",بيانات!$AA44="جرار"),بيانات!$Z44*بيانات!$Y44,بيانات!$Z44*24) -> 2400 | AG44: =IF(AND(بيانات!$Y44>=5,AND(بيانات!$U44="طن",بيانات!$AA44="5 طن")),بيانات!$Z44*بيانات!$Y44,بيانات!$Z44*5) -> 500 | AH44: =IF(بيانات!$U44="نقلة",بيانات!$Z44,"") -> 
A45: =بيانات!$X45 -> 194264 | B45: 2020-06-01 | C45: هاني عبدالمنعم | D45: 9626 | F45: كفرالشيخ | G45: 500 | H45: كفر الشيخ | U45: طن | V45: 80 | W45: =IFERROR(IF($U45="نقلة",$Z45,IF(AND(Y45>=SUMIF(data!$A$18:$A$21,AA45,data!$B$18:$B$21),$U45="طن"),($Y45*$Z45),$Z45*AC45)),"") ->  | X45: 194264 | Z45: =IFERROR(IF(بيانات!$U45="نقلة",INDEX(الجدول35[[5 طن]:[وش]],MATCH(بيانات!$H45,الجدول35[عمود1],0),MATCH(بيانات!$AA45,الجدول35[[#Headers],[5 طن]:[وش]],0)),INDEX(الجدول3[[5 طن]:[وش]],MATCH(بيانات!$H45,الجدول3[عمود1],0),MATCH(بيانات!$AA45,الجدول3[[#Headers],[5 طن]:[وش]],0))),"") ->  | AA45: 5 طن | AF45: =IF(AND(بيانات!$Y45>=24,بيانات!$U45="طن",بيانات!$AA45="جرار"),بيانات!$Z45*بيانات!$Y45,بيانات!$Z45*24) ->  | AG45: =IF(AND(بيانات!$Y45>=5,AND(بيانات!$U45="طن",بيانات!$AA45="5 طن")),بيانات!$Z45*بيانات!$Y45,بيانات!$Z45*5) ->  | AH45: =IF(بيانات!$U45="نقلة",بيانات!$Z45,"") -> 
A46: =بيانات!$X46 -> 194316 | B46: 2020-06-01 | C46: محمود احمد | D46: 7421 | F46: البدرشين | G46: 300 | H46: الجيزه | U46: طن | V46: 75 | W46: =IFERROR(IF($U46="نقلة",$Z46,IF(AND(Y46>=SUMIF(data!$A$18:$A$21,AA46,data!$B$18:$B$21),$U46="طن"),($Y46*$Z46),$Z46*AC46)),"") -> 0 | X46: 194316 | Z46: =IFERROR(IF(بيانات!$U46="نقلة",INDEX(الجدول35[[5 طن]:[وش]],MATCH(بيانات!$H46,الجدول35[عمود1],0),MATCH(بيانات!$AA46,الجدول35[[#Headers],[5 طن]:[وش]],0)),INDEX(الجدول3[[5 طن]:[وش]],MATCH(بيانات!$H46,الجدول3[عمود1],0),MATCH(بيانات!$AA46,الجدول3[[#Headers],[5 طن]:[وش]],0))),"") -> 110 | AA46: 5 طن | AF46: =IF(AND(بيانات!$Y46>=24,بيانات!$U46="طن",بيانات!$AA46="جرار"),بيانات!$Z46*بيانات!$Y46,بيانات!$Z46*24) -> 2640 | AG46: =IF(AND(بيانات!$Y46>=5,AND(بيانات!$U46="طن",بيانات!$AA46="5 طن")),بيانات!$Z46*بيانات!$Y46,بيانات!$Z46*5) -> 550 | AH46: =IF(بيانات!$U46="نقلة",بيانات!$Z46,"") -> 
A47: =بيانات!$X47 -> 0 | B47: 2020-06-01 | C47: احمد محمد فراج | F47: اسكندريه | G47: 600 | U47: طن | W47: =IFERROR(IF($U47="نقلة",$Z47,IF(AND(Y47>=SUMIF(data!$A$18:$A$21,AA47,data!$B$18:$B$21),$U47="طن"),($Y47*$Z47),$Z47*AC47)),"") ->  | Z47: =IFERROR(IF(بيانات!$U47="نقلة",INDEX(الجدول35[[5 طن]:[وش]],MATCH(بيانات!$H47,الجدول35[عمود1],0),MATCH(بيانات!$AA47,الجدول35[[#Headers],[5 طن]:[وش]],0)),INDEX(الجدول3[[5 طن]:[وش]],MATCH(بيانات!$H47,الجدول3[عمود1],0),MATCH(بيانات!$AA47,الجدول3[[#Headers],[5 طن]:[وش]],0))),"") ->  | AA47: 5 طن | AF47: =IF(AND(بيانات!$Y47>=24,بيانات!$U47="طن",بيانات!$AA47="جرار"),بيانات!$Z47*بيانات!$Y47,بيانات!$Z47*24) ->  | AG47: =IF(AND(بيانات!$Y47>=5,AND(بيانات!$U47="طن",بيانات!$AA47="5 طن")),بيانات!$Z47*بيانات!$Y47,بيانات!$Z47*5) ->  | AH47: =IF(بيانات!$U47="نقلة",بيانات!$Z47,"") -> 
A48: =بيانات!$X48 -> 0 | B48: 2020-06-01 | C48: جمال عبدالرازق | F48: بحيره | G48: 500 | U48: طن | W48: =IFERROR(IF($U48="نقلة",$Z48,IF(AND(Y48>=SUMIF(data!$A$18:$A$21,AA48,data!$B$18:$B$21),$U48="طن"),($Y48*$Z48),$Z48*AC48)),"") ->  | Z48: =IFERROR(IF(بيانات!$U48="نقلة",INDEX(الجدول35[[5 طن]:[وش]],MATCH(بيانات!$H48,الجدول35[عمود1],0),MATCH(بيانات!$AA48,الجدول35[[#Headers],[5 طن]:[وش]],0)),INDEX(الجدول3[[5 طن]:[وش]],MATCH(بيانات!$H48,الجدول3[عمود1],0),MATCH(بيانات!$AA48,الجدول3[[#Headers],[5 طن]:[وش]],0))),"") ->  | AA48: 5 طن | AF48: =IF(AND(بيانات!$Y48>=24,بيانات!$U48="طن",بيانات!$AA48="جرار"),بيانات!$Z48*بيانات!$Y48,بيانات!$Z48*24) ->  | AG48: =IF(AND(بيانات!$Y48>=5,AND(بيانات!$U48="طن",بيانات!$AA48="5 طن")),بيانات!$Z48*بيانات!$Y48,بيانات!$Z48*5) ->  | AH48: =IF(بيانات!$U48="نقلة",بيانات!$Z48,"") -> 
A49: =بيانات!$X49 -> 194010 | B49: 2020-05-31 | C49: بشير السيد | D49: 3751 | F49: بحيره | H49: البحيره | U49: طن | V49: 80 | W49: =IFERROR(IF($U49="نقلة",$Z49,IF(AND(Y49>=SUMIF(data!$A$18:$A$21,AA49,data!$B$18:$B$21),$U49="طن"),($Y49*$Z49),$Z49*AC49)),"") -> 0 | X49: 194010 | Z49: =IFERROR(IF(بيانات!$U49="نقلة",INDEX(الجدول35[[5 طن]:[وش]],MATCH(بيانات!$H49,الجدول35[عمود1],0),MATCH(بيانات!$AA49,الجدول35[[#Headers],[5 طن]:[وش]],0)),INDEX(الجدول3[[5 طن]:[وش]],MATCH(بيانات!$H49,الجدول3[عمود1],0),MATCH(بيانات!$AA49,الجدول3[[#Headers],[5 طن]:[وش]],0))),"") -> 165 | AA49: 5 طن | AF49: =IF(AND(بيانات!$Y49>=24,بيانات!$U49="طن",بيانات!$AA49="جرار"),بيانات!$Z49*بيانات!$Y49,بيانات!$Z49*24) -> 3960 | AG49: =IF(AND(بيانات!$Y49>=5,AND(بيانات!$U49="طن",بيانات!$AA49="5 طن")),بيانات!$Z49*بيانات!$Y49,بيانات!$Z49*5) -> 825 | AH49: =IF(بيانات!$U49="نقلة",بيانات!$Z49,"") -> 
A50: =بيانات!$X50 -> 194065 | B50: 2020-06-01 | C50: بشير السيد | D50: 3751 | F50: ام زغو | G50: 300 | H50: الاسكندريه | U50: طن | V50: 80 | W50: =IFERROR(IF($U50="نقلة",$Z50,IF(AND(Y50>=SUMIF(data!$A$18:$A$21,AA50,data!$B$18:$B$21),$U50="طن"),($Y50*$Z50),$Z50*AC50)),"") -> 0 | X50: 194065 | Z50: =IFERROR(IF(بيانات!$U50="نقلة",INDEX(الجدول35[[5 طن]:[وش]],MATCH(بيانات!$H50,الجدول35[عمود1],0),MATCH(بيانات!$AA50,الجدول35[[#Headers],[5 طن]:[وش]],0)),INDEX(الجدول3[[5 طن]:[وش]],MATCH(بيانات!$H50,الجدول3[عمود1],0),MATCH(بيانات!$AA50,الجدول3[[#Headers],[5 طن]:[وش]],0))),"") -> 215 | AA50: 5 طن | AF50: =IF(AND(بيانات!$Y50>=24,بيانات!$U50="طن",بيانات!$AA50="جرار"),بيانات!$Z50*بيانات!$Y50,بيانات!$Z50*24) -> 5160 | AG50: =IF(AND(بيانات!$Y50>=5,AND(بيانات!$U50="طن",بيانات!$AA50="5 طن")),بيانات!$Z50*بيانات!$Y50,بيانات!$Z50*5) -> 1075 | AH50: =IF(بيانات!$U50="نقلة",بيانات!$Z50,"") -> 
A51: =بيانات!$X51 -> 0 | B51: 2020-06-01 | C51: حامد رفعت | D51: 1698 | F51: بحيره | G51: 200 | U51: طن | W51: =IFERROR(IF($U51="نقلة",$Z51,IF(AND(Y51>=SUMIF(data!$A$18:$A$21,AA51,data!$B$18:$B$21),$U51="طن"),($Y51*$Z51),$Z51*AC51)),"") ->  | Z51: =IFERROR(IF(بيانات!$U51="نقلة",INDEX(الجدول35[[5 طن]:[وش]],MATCH(بيانات!$H51,الجدول35[عمود1],0),MATCH(بيانات!$AA51,الجدول35[[#Headers],[5 طن]:[وش]],0)),INDEX(الجدول3[[5 طن]:[وش]],MATCH(بيانات!$H51,الجدول3[عمود1],0),MATCH(بيانات!$AA51,الجدول3[[#Headers],[5 طن]:[وش]],0))),"") ->  | AA51: 5 طن | AF51: =IF(AND(بيانات!$Y51>=24,بيانات!$U51="طن",بيانات!$AA51="جرار"),بيانات!$Z51*بيانات!$Y51,بيانات!$Z51*24) ->  | AG51: =IF(AND(بيانات!$Y51>=5,AND(بيانات!$U51="طن",بيانات!$AA51="5 طن")),بيانات!$Z51*بيانات!$Y51,بيانات!$Z51*5) ->  | AH51: =IF(بيانات!$U51="نقلة",بيانات!$Z51,"") -> 
A52: =بيانات!$X52 -> 0 | B52: 2020-06-02 | C52: هاني سامي | F52: قاهره | G52: 300 | U52: طن | W52: =IFERROR(IF($U52="نقلة",$Z52,IF(AND(Y52>=SUMIF(data!$A$18:$A$21,AA52,data!$B$18:$B$21),$U52="طن"),($Y52*$Z52),$Z52*AC52)),"") ->  | Z52: =IFERROR(IF(بيانات!$U52="نقلة",INDEX(الجدول35[[5 طن]:[وش]],MATCH(بيانات!$H52,الجدول35[عمود1],0),MATCH(بيانات!$AA52,الجدول35[[#Headers],[5 طن]:[وش]],0)),INDEX(الجدول3[[5 طن]:[وش]],MATCH(بيانات!$H52,الجدول3[عمود1],0),MATCH(بيانات!$AA52,الجدول3[[#Headers],[5 طن]:[وش]],0))),"") ->  | AA52: 5 طن | AF52: =IF(AND(بيانات!$Y52>=24,بيانات!$U52="طن",بيانات!$AA52="جرار"),بيانات!$Z52*بيانات!$Y52,بيانات!$Z52*24) ->  | AG52: =IF(AND(بيانات!$Y52>=5,AND(بيانات!$U52="طن",بيانات!$AA52="5 طن")),بيانات!$Z52*بيانات!$Y52,بيانات!$Z52*5) ->  | AH52: =IF(بيانات!$U52="نقلة",بيانات!$Z52,"") -> 
A53: =بيانات!$X53 -> 0 | B53: 2020-06-02 | C53: محمود عبدالعظيم | F53: كفرالشيخ | G53: 500 | U53: طن | W53: =IFERROR(IF($U53="نقلة",$Z53,IF(AND(Y53>=SUMIF(data!$A$18:$A$21,AA53,data!$B$18:$B$21),$U53="طن"),($Y53*$Z53),$Z53*AC53)),"") ->  | Z53: =IFERROR(IF(بيانات!$U53="نقلة",INDEX(الجدول35[[5 طن]:[وش]],MATCH(بيانات!$H53,الجدول35[عمود1],0),MATCH(بيانات!$AA53,الجدول35[[#Headers],[5 طن]:[وش]],0)),INDEX(الجدول3[[5 طن]:[وش]],MATCH(بيانات!$H53,الجدول3[عمود1],0),MATCH(بيانات!$AA53,الجدول3[[#Headers],[5 طن]:[وش]],0))),"") ->  | AA53: 5 طن | AF53: =IF(AND(بيانات!$Y53>=24,بيانات!$U53="طن",بيانات!$AA53="جرار"),بيانات!$Z53*بيانات!$Y53,بيانات!$Z53*24) ->  | AG53: =IF(AND(بيانات!$Y53>=5,AND(بيانات!$U53="طن",بيانات!$AA53="5 طن")),بيانات!$Z53*بيانات!$Y53,بيانات!$Z53*5) ->  | AH53: =IF(بيانات!$U53="نقلة",بيانات!$Z53,"") -> 
A54: =بيانات!$X54 -> 194436 | B54: 2020-06-02 | C54: رمضان حمدي | D54: 1328 | F54: الفرجاني | G54: 100 | H54: القاهره | U54: طن | V54: 65 | W54: =IFERROR(IF($U54="نقلة",$Z54,IF(AND(Y54>=SUMIF(data!$A$18:$A$21,AA54,data!$B$18:$B$21),$U54="طن"),($Y54*$Z54),$Z54*AC54)),"") -> 0 | X54: 194436 | Z54: =IFERROR(IF(بيانات!$U54="نقلة",INDEX(الجدول35[[5 طن]:[وش]],MATCH(بيانات!$H54,الجدول35[عمود1],0),MATCH(بيانات!$AA54,الجدول35[[#Headers],[5 طن]:[وش]],0)),INDEX(الجدول3[[5 طن]:[وش]],MATCH(بيانات!$H54,الجدول3[عمود1],0),MATCH(بيانات!$AA54,الجدول3[[#Headers],[5 طن]:[وش]],0))),"") -> 100 | AA54: 5 طن | AF54: =IF(AND(بيانات!$Y54>=24,بيانات!$U54="طن",بيانات!$AA54="جرار"),بيانات!$Z54*بيانات!$Y54,بيانات!$Z54*24) -> 2400 | AG54: =IF(AND(بيانات!$Y54>=5,AND(بيانات!$U54="طن",بيانات!$AA54="5 طن")),بيانات!$Z54*بيانات!$Y54,بيانات!$Z54*5) -> 500 | AH54: =IF(بيانات!$U54="نقلة",بيانات!$Z54,"") -> 
A55: =بيانات!$X55 -> 194466 | B55: 2020-06-02 | C55: محمد فوزي | D55: 4139 | F55: يثرب | G55: 300 | H55: الجيزه | U55: طن | V55: 75 | W55: =IFERROR(IF($U55="نقلة",$Z55,IF(AND(Y55>=SUMIF(data!$A$18:$A$21,AA55,data!$B$18:$B$21),$U55="طن"),($Y55*$Z55),$Z55*AC55)),"") -> 0 | X55: 194466 | Z55: =IFERROR(IF(بيانات!$U55="نقلة",INDEX(الجدول35[[5 طن]:[وش]],MATCH(بيانات!$H55,الجدول35[عمود1],0),MATCH(بيانات!$AA55,الجدول35[[#Headers],[5 طن]:[وش]],0)),INDEX(الجدول3[[5 طن]:[وش]],MATCH(بيانات!$H55,الجدول3[عمود1],0),MATCH(بيانات!$AA55,الجدول3[[#Headers],[5 طن]:[وش]],0))),"") -> 110 | AA55: 5 طن | AF55: =IF(AND(بيانات!$Y55>=24,بيانات!$U55="طن",بيانات!$AA55="جرار"),بيانات!$Z55*بيانات!$Y55,بيانات!$Z55*24) -> 2640 | AG55: =IF(AND(بيانات!$Y55>=5,AND(بيانات!$U55="طن",بيانات!$AA55="5 طن")),بيانات!$Z55*بيانات!$Y55,بيانات!$Z55*5) -> 550 | AH55: =IF(بيانات!$U55="نقلة",بيانات!$Z55,"") -> 
A56: =بيانات!$X56 -> 194380 | B56: 2020-06-02 | C56: ابراهيم حامد | D56: 3927 | F56: قاهره | G56: 300 | H56: القاهره | U56: طن | V56: 75 | W56: =IFERROR(IF($U56="نقلة",$Z56,IF(AND(Y56>=SUMIF(data!$A$18:$A$21,AA56,data!$B$18:$B$21),$U56="طن"),($Y56*$Z56),$Z56*AC56)),"") -> 0 | X56: 194380 | Z56: =IFERROR(IF(بيانات!$U56="نقلة",INDEX(الجدول35[[5 طن]:[وش]],MATCH(بيانات!$H56,الجدول35[عمود1],0),MATCH(بيانات!$AA56,الجدول35[[#Headers],[5 طن]:[وش]],0)),INDEX(الجدول3[[5 طن]:[وش]],MATCH(بيانات!$H56,الجدول3[عمود1],0),MATCH(بيانات!$AA56,الجدول3[[#Headers],[5 طن]:[وش]],0))),"") -> 95 | AA56: وش | AF56: =IF(AND(بيانات!$Y56>=24,بيانات!$U56="طن",بيانات!$AA56="جرار"),بيانات!$Z56*بيانات!$Y56,بيانات!$Z56*24) -> 2280 | AG56: =IF(AND(بيانات!$Y56>=5,AND(بيانات!$U56="طن",بيانات!$AA56="5 طن")),بيانات!$Z56*بيانات!$Y56,بيانات!$Z56*5) -> 475 | AH56: =IF(بيانات!$U56="نقلة",بيانات!$Z56,"") -> 
A57: =بيانات!$X57 -> 0 | B57: 2020-06-02 | C57: محمد عادل | D57: 1279 | F57: اسكندريه | G57: 200 | R57: 400 | S57: لفه3 | U57: طن | W57: =IFERROR(IF($U57="نقلة",$Z57,IF(AND(Y57>=SUMIF(data!$A$18:$A$21,AA57,data!$B$18:$B$21),$U57="طن"),($Y57*$Z57),$Z57*AC57)),"") ->  | Z57: =IFERROR(IF(بيانات!$U57="نقلة",INDEX(الجدول35[[5 طن]:[وش]],MATCH(بيانات!$H57,الجدول35[عمود1],0),MATCH(بيانات!$AA57,الجدول35[[#Headers],[5 طن]:[وش]],0)),INDEX(الجدول3[[5 طن]:[وش]],MATCH(بيانات!$H57,الجدول3[عمود1],0),MATCH(بيانات!$AA57,الجدول3[[#Headers],[5 طن]:[وش]],0))),"") ->  | AA57: 5 طن | AF57: =IF(AND(بيانات!$Y57>=24,بيانات!$U57="طن",بيانات!$AA57="جرار"),بيانات!$Z57*بيانات!$Y57,بيانات!$Z57*24) ->  | AG57: =IF(AND(بيانات!$Y57>=5,AND(بيانات!$U57="طن",بيانات!$AA57="5 طن")),بيانات!$Z57*بيانات!$Y57,بيانات!$Z57*5) ->  | AH57: =IF(بيانات!$U57="نقلة",بيانات!$Z57,"") -> 
A58: =بيانات!$X58 -> 194409 | B58: 2020-06-02 | C58: حامد رفعت | D58: 1698 | F58: اسكندريه | G58: 250 | H58: الاسكندريه | U58: طن | V58: 80 | W58: =IFERROR(IF($U58="نقلة",$Z58,IF(AND(Y58>=SUMIF(data!$A$18:$A$21,AA58,data!$B$18:$B$21),$U58="طن"),($Y58*$Z58),$Z58*AC58)),"") -> 0 | X58: 194409 | Z58: =IFERROR(IF(بيانات!$U58="نقلة",INDEX(الجدول35[[5 طن]:[وش]],MATCH(بيانات!$H58,الجدول35[عمود1],0),MATCH(بيانات!$AA58,الجدول35[[#Headers],[5 طن]:[وش]],0)),INDEX(الجدول3[[5 طن]:[وش]],MATCH(بيانات!$H58,الجدول3[عمود1],0),MATCH(بيانات!$AA58,الجدول3[[#Headers],[5 طن]:[وش]],0))),"") -> 215 | AA58: 5 طن | AF58: =IF(AND(بيانات!$Y58>=24,بيانات!$U58="طن",بيانات!$AA58="جرار"),بيانات!$Z58*بيانات!$Y58,بيانات!$Z58*24) -> 5160 | AG58: =IF(AND(بيانات!$Y58>=5,AND(بيانات!$U58="طن",بيانات!$AA58="5 طن")),بيانات!$Z58*بيانات!$Y58,بيانات!$Z58*5) -> 1075 | AH58: =IF(بيانات!$U58="نقلة",بيانات!$Z58,"") -> 
A59: =بيانات!$X59 -> 194410 | B59: 2020-06-02 | C59: ابراهيم حسن | D59: 6718 | F59: اسكندريه | G59: 150 | H59: الاسكندريه | U59: طن | V59: 80 | W59: =IFERROR(IF($U59="نقلة",$Z59,IF(AND(Y59>=SUMIF(data!$A$18:$A$21,AA59,data!$B$18:$B$21),$U59="طن"),($Y59*$Z59),$Z59*AC59)),"") -> 0 | X59: 194410 | Z59: =IFERROR(IF(بيانات!$U59="نقلة",INDEX(الجدول35[[5 طن]:[وش]],MATCH(بيانات!$H59,الجدول35[عمود1],0),MATCH(بيانات!$AA59,الجدول35[[#Headers],[5 طن]:[وش]],0)),INDEX(الجدول3[[5 طن]:[وش]],MATCH(بيانات!$H59,الجدول3[عمود1],0),MATCH(بيانات!$AA59,الجدول3[[#Headers],[5 طن]:[وش]],0))),"") -> 215 | AA59: 5 طن | AF59: =IF(AND(بيانات!$Y59>=24,بيانات!$U59="طن",بيانات!$AA59="جرار"),بيانات!$Z59*بيانات!$Y59,بيانات!$Z59*24) -> 5160 | AG59: =IF(AND(بيانات!$Y59>=5,AND(بيانات!$U59="طن",بيانات!$AA59="5 طن")),بيانات!$Z59*بيانات!$Y59,بيانات!$Z59*5) -> 1075 | AH59: =IF(بيانات!$U59="نقلة",بيانات!$Z59,"") -> 
A60: =بيانات!$X60 -> 194296 | B60: 2020-06-01 | C60: بشير السيد | D60: 3751 | F60: ام زغو | H60: الاسكندريه | U60: طن | V60: 65 | W60: =IFERROR(IF($U60="نقلة",$Z60,IF(AND(Y60>=SUMIF(data!$A$18:$A$21,AA60,data!$B$18:$B$21),$U60="طن"),($Y60*$Z60),$Z60*AC60)),"") -> 0 | X60: 194296 | Z60: =IFERROR(IF(بيانات!$U60="نقلة",INDEX(الجدول35[[5 طن]:[وش]],MATCH(بيانات!$H60,الجدول35[عمود1],0),MATCH(بيانات!$AA60,الجدول35[[#Headers],[5 طن]:[وش]],0)),INDEX(الجدول3[[5 طن]:[وش]],MATCH(بيانات!$H60,الجدول3[عمود1],0),MATCH(بيانات!$AA60,الجدول3[[#Headers],[5 طن]:[وش]],0))),"") -> 215 | AA60: 5 طن | AF60: =IF(AND(بيانات!$Y60>=24,بيانات!$U60="طن",بيانات!$AA60="جرار"),بيانات!$Z60*بيانات!$Y60,بيانات!$Z60*24) -> 5160 | AG60: =IF(AND(بيانات!$Y60>=5,AND(بيانات!$U60="طن",بيانات!$AA60="5 طن")),بيانات!$Z60*بيانات!$Y60,بيانات!$Z60*5) -> 1075 | AH60: =IF(بيانات!$U60="نقلة",بيانات!$Z60,"") -> 
A61: =بيانات!$X61 -> 0 | B61: 2020-06-02 | C61: بشير السيد | D61: 3751 | F61: اسماعيليه | G61: 150 | R61: 1000 | U61: طن | W61: =IFERROR(IF($U61="نقلة",$Z61,IF(AND(Y61>=SUMIF(data!$A$18:$A$21,AA61,data!$B$18:$B$21),$U61="طن"),($Y61*$Z61),$Z61*AC61)),"") ->  | Z61: =IFERROR(IF(بيانات!$U61="نقلة",INDEX(الجدول35[[5 طن]:[وش]],MATCH(بيانات!$H61,الجدول35[عمود1],0),MATCH(بيانات!$AA61,الجدول35[[#Headers],[5 طن]:[وش]],0)),INDEX(الجدول3[[5 طن]:[وش]],MATCH(بيانات!$H61,الجدول3[عمود1],0),MATCH(بيانات!$AA61,الجدول3[[#Headers],[5 طن]:[وش]],0))),"") ->  | AA61: 5 طن | AF61: =IF(AND(بيانات!$Y61>=24,بيانات!$U61="طن",بيانات!$AA61="جرار"),بيانات!$Z61*بيانات!$Y61,بيانات!$Z61*24) ->  | AG61: =IF(AND(بيانات!$Y61>=5,AND(بيانات!$U61="طن",بيانات!$AA61="5 طن")),بيانات!$Z61*بيانات!$Y61,بيانات!$Z61*5) ->  | AH61: =IF(بيانات!$U61="نقلة",بيانات!$Z61,"") -> 
A62: =بيانات!$X62 -> 0 | B62: 2020-06-02 | C62: محمود حسن محمد | F62: قاهره | G62: 100 | U62: طن | W62: =IFERROR(IF($U62="نقلة",$Z62,IF(AND(Y62>=SUMIF(data!$A$18:$A$21,AA62,data!$B$18:$B$21),$U62="طن"),($Y62*$Z62),$Z62*AC62)),"") ->  | Z62: =IFERROR(IF(بيانات!$U62="نقلة",INDEX(الجدول35[[5 طن]:[وش]],MATCH(بيانات!$H62,الجدول35[عمود1],0),MATCH(بيانات!$AA62,الجدول35[[#Headers],[5 طن]:[وش]],0)),INDEX(الجدول3[[5 طن]:[وش]],MATCH(بيانات!$H62,الجدول3[عمود1],0),MATCH(بيانات!$AA62,الجدول3[[#Headers],[5 طن]:[وش]],0))),"") ->  | AA62: 5 طن | AF62: =IF(AND(بيانات!$Y62>=24,بيانات!$U62="طن",بيانات!$AA62="جرار"),بيانات!$Z62*بيانات!$Y62,بيانات!$Z62*24) ->  | AG62: =IF(AND(بيانات!$Y62>=5,AND(بيانات!$U62="طن",بيانات!$AA62="5 طن")),بيانات!$Z62*بيانات!$Y62,بيانات!$Z62*5) ->  | AH62: =IF(بيانات!$U62="نقلة",بيانات!$Z62,"") -> 
A63: =بيانات!$X63 -> 194544 | B63: 2020-06-02 | C63: رمضان محمود | D63: 7293 | F63: قاهره | G63: 150 | H63: القاهره | U63: طن | V63: 75 | W63: =IFERROR(IF($U63="نقلة",$Z63,IF(AND(Y63>=SUMIF(data!$A$18:$A$21,AA63,data!$B$18:$B$21),$U63="طن"),($Y63*$Z63),$Z63*AC63)),"") -> 0 | X63: 194544 | Z63: =IFERROR(IF(بيانات!$U63="نقلة",INDEX(الجدول35[[5 طن]:[وش]],MATCH(بيانات!$H63,الجدول35[عمود1],0),MATCH(بيانات!$AA63,الجدول35[[#Headers],[5 طن]:[وش]],0)),INDEX(الجدول3[[5 طن]:[وش]],MATCH(بيانات!$H63,الجدول3[عمود1],0),MATCH(بيانات!$AA63,الجدول3[[#Headers],[5 طن]:[وش]],0))),"") -> 100 | AA63: 5 طن | AF63: =IF(AND(بيانات!$Y63>=24,بيانات!$U63="طن",بيانات!$AA63="جرار"),بيانات!$Z63*بيانات!$Y63,بيانات!$Z63*24) -> 2400 | AG63: =IF(AND(بيانات!$Y63>=5,AND(بيانات!$U63="طن",بيانات!$AA63="5 طن")),بيانات!$Z63*بيانات!$Y63,بيانات!$Z63*5) -> 500 | AH63: =IF(بيانات!$U63="نقلة",بيانات!$Z63,"") -> 
A64: =بيانات!$X64 -> 0 | B64: 2020-06-02 | C64: فريد محمد | F64: مترو | G64: 300 | U64: طن | W64: =IFERROR(IF($U64="نقلة",$Z64,IF(AND(Y64>=SUMIF(data!$A$18:$A$21,AA64,data!$B$18:$B$21),$U64="طن"),($Y64*$Z64),$Z64*AC64)),"") ->  | Z64: =IFERROR(IF(بيانات!$U64="نقلة",INDEX(الجدول35[[5 طن]:[وش]],MATCH(بيانات!$H64,الجدول35[عمود1],0),MATCH(بيانات!$AA64,الجدول35[[#Headers],[5 طن]:[وش]],0)),INDEX(الجدول3[[5 طن]:[وش]],MATCH(بيانات!$H64,الجدول3[عمود1],0),MATCH(بيانات!$AA64,الجدول3[[#Headers],[5 طن]:[وش]],0))),"") ->  | AA64: 5 طن | AF64: =IF(AND(بيانات!$Y64>=24,بيانات!$U64="طن",بيانات!$AA64="جرار"),بيانات!$Z64*بيانات!$Y64,بيانات!$Z64*24) ->  | AG64: =IF(AND(بيانات!$Y64>=5,AND(بيانات!$U64="طن",بيانات!$AA64="5 طن")),بيانات!$Z64*بيانات!$Y64,بيانات!$Z64*5) ->  | AH64: =IF(بيانات!$U64="نقلة",بيانات!$Z64,"") -> 
A65: =بيانات!$X65 -> 0 | B65: 2020-06-02 | C65: جمال عبدالحكيم | F65: مترو | G65: 400 | U65: طن | W65: =IFERROR(IF($U65="نقلة",$Z65,IF(AND(Y65>=SUMIF(data!$A$18:$A$21,AA65,data!$B$18:$B$21),$U65="طن"),($Y65*$Z65),$Z65*AC65)),"") ->  | Z65: =IFERROR(IF(بيانات!$U65="نقلة",INDEX(الجدول35[[5 طن]:[وش]],MATCH(بيانات!$H65,الجدول35[عمود1],0),MATCH(بيانات!$AA65,الجدول35[[#Headers],[5 طن]:[وش]],0)),INDEX(الجدول3[[5 طن]:[وش]],MATCH(بيانات!$H65,الجدول3[عمود1],0),MATCH(بيانات!$AA65,الجدول3[[#Headers],[5 طن]:[وش]],0))),"") ->  | AA65: 5 طن | AF65: =IF(AND(بيانات!$Y65>=24,بيانات!$U65="طن",بيانات!$AA65="جرار"),بيانات!$Z65*بيانات!$Y65,بيانات!$Z65*24) ->  | AG65: =IF(AND(بيانات!$Y65>=5,AND(بيانات!$U65="طن",بيانات!$AA65="5 طن")),بيانات!$Z65*بيانات!$Y65,بيانات!$Z65*5) ->  | AH65: =IF(بيانات!$U65="نقلة",بيانات!$Z65,"") -> 
A66: =بيانات!$X66 -> 194471 | B66: 2020-06-02 | C66: علاء شحاته | D66: 7462 | F66: النهضه | G66: 700 | H66: الاسكندريه | U66: طن | V66: 80 | W66: =IFERROR(IF($U66="نقلة",$Z66,IF(AND(Y66>=SUMIF(data!$A$18:$A$21,AA66,data!$B$18:$B$21),$U66="طن"),($Y66*$Z66),$Z66*AC66)),"") -> 0 | X66: 194471 | Z66: =IFERROR(IF(بيانات!$U66="نقلة",INDEX(الجدول35[[5 طن]:[وش]],MATCH(بيانات!$H66,الجدول35[عمود1],0),MATCH(بيانات!$AA66,الجدول35[[#Headers],[5 طن]:[وش]],0)),INDEX(الجدول3[[5 طن]:[وش]],MATCH(بيانات!$H66,الجدول3[عمود1],0),MATCH(بيانات!$AA66,الجدول3[[#Headers],[5 طن]:[وش]],0))),"") -> 215 | AA66: 5 طن | AF66: =IF(AND(بيانات!$Y66>=24,بيانات!$U66="طن",بيانات!$AA66="جرار"),بيانات!$Z66*بيانات!$Y66,بيانات!$Z66*24) -> 5160 | AG66: =IF(AND(بيانات!$Y66>=5,AND(بيانات!$U66="طن",بيانات!$AA66="5 طن")),بيانات!$Z66*بيانات!$Y66,بيانات!$Z66*5) -> 1075 | AH66: =IF(بيانات!$U66="نقلة",بيانات!$Z66,"") -> 
A67: =بيانات!$X67 -> 0 | B67: 2020-06-02 | C67: عبده فهمي | F67: دمياط | G67: 2000 | S67: جرار | U67: طن | W67: =IFERROR(IF($U67="نقلة",$Z67,IF(AND(Y67>=SUMIF(data!$A$18:$A$21,AA67,data!$B$18:$B$21),$U67="طن"),($Y67*$Z67),$Z67*AC67)),"") ->  | Z67: =IFERROR(IF(بيانات!$U67="نقلة",INDEX(الجدول35[[5 طن]:[وش]],MATCH(بيانات!$H67,الجدول35[عمود1],0),MATCH(بيانات!$AA67,الجدول35[[#Headers],[5 طن]:[وش]],0)),INDEX(الجدول3[[5 طن]:[وش]],MATCH(بيانات!$H67,الجدول3[عمود1],0),MATCH(بيانات!$AA67,الجدول3[[#Headers],[5 طن]:[وش]],0))),"") ->  | AA67: 5 طن | AF67: =IF(AND(بيانات!$Y67>=24,بيانات!$U67="طن",بيانات!$AA67="جرار"),بيانات!$Z67*بيانات!$Y67,بيانات!$Z67*24) ->  | AG67: =IF(AND(بيانات!$Y67>=5,AND(بيانات!$U67="طن",بيانات!$AA67="5 طن")),بيانات!$Z67*بيانات!$Y67,بيانات!$Z67*5) ->  | AH67: =IF(بيانات!$U67="نقلة",بيانات!$Z67,"") -> 
A68: =بيانات!$X68 -> 0 | B68: 2020-06-02 | C68: حسن مصطفي | F68: كفرالشيخ | G68: 2000 | S68: جرار | U68: طن | W68: =IFERROR(IF($U68="نقلة",$Z68,IF(AND(Y68>=SUMIF(data!$A$18:$A$21,AA68,data!$B$18:$B$21),$U68="طن"),($Y68*$Z68),$Z68*AC68)),"") ->  | Z68: =IFERROR(IF(بيانات!$U68="نقلة",INDEX(الجدول35[[5 طن]:[وش]],MATCH(بيانات!$H68,الجدول35[عمود1],0),MATCH(بيانات!$AA68,الجدول35[[#Headers],[5 طن]:[وش]],0)),INDEX(الجدول3[[5 طن]:[وش]],MATCH(بيانات!$H68,الجدول3[عمود1],0),MATCH(بيانات!$AA68,الجدول3[[#Headers],[5 طن]:[وش]],0))),"") ->  | AA68: 5 طن | AF68: =IF(AND(بيانات!$Y68>=24,بيانات!$U68="طن",بيانات!$AA68="جرار"),بيانات!$Z68*بيانات!$Y68,بيانات!$Z68*24) ->  | AG68: =IF(AND(بيانات!$Y68>=5,AND(بيانات!$U68="طن",بيانات!$AA68="5 طن")),بيانات!$Z68*بيانات!$Y68,بيانات!$Z68*5) ->  | AH68: =IF(بيانات!$U68="نقلة",بيانات!$Z68,"") -> 
A69: =بيانات!$X69 -> 567676 | B69: 2020-06-02 | C69: ابراهيم عطيه | F69: بني سويف | G69: 1000 | H69: الجيزه | S69: وش | U69: طن | W69: =IFERROR(IF($U69="نقلة",$Z69,IF(AND(Y69>=SUMIF(data!$A$18:$A$21,AA69,data!$B$18:$B$21),$U69="طن"),($Y69*$Z69),$Z69*AC69)),"") -> 0 | X69: 567676 | Z69: =IFERROR(IF(بيانات!$U69="نقلة",INDEX(الجدول35[[5 طن]:[وش]],MATCH(بيانات!$H69,الجدول35[عمود1],0),MATCH(بيانات!$AA69,الجدول35[[#Headers],[5 طن]:[وش]],0)),INDEX(الجدول3[[5 طن]:[وش]],MATCH(بيانات!$H69,الجدول3[عمود1],0),MATCH(بيانات!$AA69,الجدول3[[#Headers],[5 طن]:[وش]],0))),"") -> 110 | AA69: 5 طن | AF69: =IF(AND(بيانات!$Y69>=24,بيانات!$U69="طن",بيانات!$AA69="جرار"),بيانات!$Z69*بيانات!$Y69,بيانات!$Z69*24) -> 2640 | AG69: =IF(AND(بيانات!$Y69>=5,AND(بيانات!$U69="طن",بيانات!$AA69="5 طن")),بيانات!$Z69*بيانات!$Y69,بيانات!$Z69*5) -> 550 | AH69: =IF(بيانات!$U69="نقلة",بيانات!$Z69,"") -> 
A70: =بيانات!$X70 -> 0 | B70: 2020-06-02 | C70: حسن عبدالحليم | F70: المحله | G70: 200 | U70: طن | W70: =IFERROR(IF($U70="نقلة",$Z70,IF(AND(Y70>=SUMIF(data!$A$18:$A$21,AA70,data!$B$18:$B$21),$U70="طن"),($Y70*$Z70),$Z70*AC70)),"") ->  | Z70: =IFERROR(IF(بيانات!$U70="نقلة",INDEX(الجدول35[[5 طن]:[وش]],MATCH(بيانات!$H70,الجدول35[عمود1],0),MATCH(بيانات!$AA70,الجدول35[[#Headers],[5 طن]:[وش]],0)),INDEX(الجدول3[[5 طن]:[وش]],MATCH(بيانات!$H70,الجدول3[عمود1],0),MATCH(بيانات!$AA70,الجدول3[[#Headers],[5 طن]:[وش]],0))),"") ->  | AA70: 5 طن | AF70: =IF(AND(بيانات!$Y70>=24,بيانات!$U70="طن",بيانات!$AA70="جرار"),بيانات!$Z70*بيانات!$Y70,بيانات!$Z70*24) ->  | AG70: =IF(AND(بيانات!$Y70>=5,AND(بيانات!$U70="طن",بيانات!$AA70="5 طن")),بيانات!$Z70*بيانات!$Y70,بيانات!$Z70*5) ->  | AH70: =IF(بيانات!$U70="نقلة",بيانات!$Z70,"") -> 
A71: =بيانات!$X71 -> 194478 | B71: 2020-06-02 | C71: اسلام محمد | D71: 1487 | F71: نوبار | G71: 300 | H71: القاهره | U71: طن | V71: 75 | W71: =IFERROR(IF($U71="نقلة",$Z71,IF(AND(Y71>=SUMIF(data!$A$18:$A$21,AA71,data!$B$18:$B$21),$U71="طن"),($Y71*$Z71),$Z71*AC71)),"") -> 0 | X71: 194478 | Z71: =IFERROR(IF(بيانات!$U71="نقلة",INDEX(الجدول35[[5 طن]:[وش]],MATCH(بيانات!$H71,الجدول35[عمود1],0),MATCH(بيانات!$AA71,الجدول35[[#Headers],[5 طن]:[وش]],0)),INDEX(الجدول3[[5 طن]:[وش]],MATCH(بيانات!$H71,الجدول3[عمود1],0),MATCH(بيانات!$AA71,الجدول3[[#Headers],[5 طن]:[وش]],0))),"") -> 100 | AA71: 5 طن | AF71: =IF(AND(بيانات!$Y71>=24,بيانات!$U71="طن",بيانات!$AA71="جرار"),بيانات!$Z71*بيانات!$Y71,بيانات!$Z71*24) -> 2400 | AG71: =IF(AND(بيانات!$Y71>=5,AND(بيانات!$U71="طن",بيانات!$AA71="5 طن")),بيانات!$Z71*بيانات!$Y71,بيانات!$Z71*5) -> 500 | AH71: =IF(بيانات!$U71="نقلة",بيانات!$Z71,"") -> 
A72: =بيانات!$X72 -> 0 | B72: 2020-06-02 | C72: عبده السيد | F72: قاهره | G72: 100 | U72: طن | W72: =IFERROR(IF($U72="نقلة",$Z72,IF(AND(Y72>=SUMIF(data!$A$18:$A$21,AA72,data!$B$18:$B$21),$U72="طن"),($Y72*$Z72),$Z72*AC72)),"") ->  | Z72: =IFERROR(IF(بيانات!$U72="نقلة",INDEX(الجدول35[[5 طن]:[وش]],MATCH(بيانات!$H72,الجدول35[عمود1],0),MATCH(بيانات!$AA72,الجدول35[[#Headers],[5 طن]:[وش]],0)),INDEX(الجدول3[[5 طن]:[وش]],MATCH(بيانات!$H72,الجدول3[عمود1],0),MATCH(بيانات!$AA72,الجدول3[[#Headers],[5 طن]:[وش]],0))),"") ->  | AA72: 5 طن | AF72: =IF(AND(بيانات!$Y72>=24,بيانات!$U72="طن",بيانات!$AA72="جرار"),بيانات!$Z72*بيانات!$Y72,بيانات!$Z72*24) ->  | AG72: =IF(AND(بيانات!$Y72>=5,AND(بيانات!$U72="طن",بيانات!$AA72="5 طن")),بيانات!$Z72*بيانات!$Y72,بيانات!$Z72*5) ->  | AH72: =IF(بيانات!$U72="نقلة",بيانات!$Z72,"") -> 
A73: =بيانات!$X73 -> 194512 | B73: 2020-06-02 | C73: احمد رافت | D73: 7918 | F73: مترو | G73: 150 | H73: اكتوبر | U73: طن | V73: 75 | W73: =IFERROR(IF($U73="نقلة",$Z73,IF(AND(Y73>=SUMIF(data!$A$18:$A$21,AA73,data!$B$18:$B$21),$U73="طن"),($Y73*$Z73),$Z73*AC73)),"") -> 0 | X73: 194512 | Z73: =IFERROR(IF(بيانات!$U73="نقلة",INDEX(الجدول35[[5 طن]:[وش]],MATCH(بيانات!$H73,الجدول35[عمود1],0),MATCH(بيانات!$AA73,الجدول35[[#Headers],[5 طن]:[وش]],0)),INDEX(الجدول3[[5 طن]:[وش]],MATCH(بيانات!$H73,الجدول3[عمود1],0),MATCH(بيانات!$AA73,الجدول3[[#Headers],[5 طن]:[وش]],0))),"") -> 120 | AA73: 5 طن | AF73: =IF(AND(بيانات!$Y73>=24,بيانات!$U73="طن",بيانات!$AA73="جرار"),بيانات!$Z73*بيانات!$Y73,بيانات!$Z73*24) -> 2880 | AG73: =IF(AND(بيانات!$Y73>=5,AND(بيانات!$U73="طن",بيانات!$AA73="5 طن")),بيانات!$Z73*بيانات!$Y73,بيانات!$Z73*5) -> 600 | AH73: =IF(بيانات!$U73="نقلة",بيانات!$Z73,"") -> 
A74: =بيانات!$X74 -> 194473 | B74: 2020-06-02 | C74: محمود احمد | D74: 7421 | F74: مترو | G74: 400 | H74: اكتوبر | U74: طن | V74: 75 | W74: =IFERROR(IF($U74="نقلة",$Z74,IF(AND(Y74>=SUMIF(data!$A$18:$A$21,AA74,data!$B$18:$B$21),$U74="طن"),($Y74*$Z74),$Z74*AC74)),"") -> 0 | X74: 194473 | Z74: =IFERROR(IF(بيانات!$U74="نقلة",INDEX(الجدول35[[5 طن]:[وش]],MATCH(بيانات!$H74,الجدول35[عمود1],0),MATCH(بيانات!$AA74,الجدول35[[#Headers],[5 طن]:[وش]],0)),INDEX(الجدول3[[5 طن]:[وش]],MATCH(بيانات!$H74,الجدول3[عمود1],0),MATCH(بيانات!$AA74,الجدول3[[#Headers],[5 طن]:[وش]],0))),"") -> 120 | AA74: 5 طن | AF74: =IF(AND(بيانات!$Y74>=24,بيانات!$U74="طن",بيانات!$AA74="جرار"),بيانات!$Z74*بيانات!$Y74,بيانات!$Z74*24) -> 2880 | AG74: =IF(AND(بيانات!$Y74>=5,AND(بيانات!$U74="طن",بيانات!$AA74="5 طن")),بيانات!$Z74*بيانات!$Y74,بيانات!$Z74*5) -> 600 | AH74: =IF(بيانات!$U74="نقلة",بيانات!$Z74,"") -> 
A75: =بيانات!$X75 -> 194451 | B75: 2020-06-02 | C75: جمال عبدالناصر | D75: 8152 | F75: بور سعيد | H75: بور سعيد | U75: طن | V75: 65 | W75: =IFERROR(IF($U75="نقلة",$Z75,IF(AND(Y75>=SUMIF(data!$A$18:$A$21,AA75,data!$B$18:$B$21),$U75="طن"),($Y75*$Z75),$Z75*AC75)),"") ->  | X75: 194451 | Z75: =IFERROR(IF(بيانات!$U75="نقلة",INDEX(الجدول35[[5 طن]:[وش]],MATCH(بيانات!$H75,الجدول35[عمود1],0),MATCH(بيانات!$AA75,الجدول35[[#Headers],[5 طن]:[وش]],0)),INDEX(الجدول3[[5 طن]:[وش]],MATCH(بيانات!$H75,الجدول3[عمود1],0),MATCH(بيانات!$AA75,الجدول3[[#Headers],[5 طن]:[وش]],0))),"") ->  | AA75: 5 طن | AF75: =IF(AND(بيانات!$Y75>=24,بيانات!$U75="طن",بيانات!$AA75="جرار"),بيانات!$Z75*بيانات!$Y75,بيانات!$Z75*24) ->  | AG75: =IF(AND(بيانات!$Y75>=5,AND(بيانات!$U75="طن",بيانات!$AA75="5 طن")),بيانات!$Z75*بيانات!$Y75,بيانات!$Z75*5) ->  | AH75: =IF(بيانات!$U75="نقلة",بيانات!$Z75,"") -> 
A76: =بيانات!$X76 -> 194534 | B76: 2020-06-02 | C76: محمد صلاح | D76: 8576 | F76: اولاد رجب | G76: 100 | H76: القاهره | U76: طن | V76: 75 | W76: =IFERROR(IF($U76="نقلة",$Z76,IF(AND(Y76>=SUMIF(data!$A$18:$A$21,AA76,data!$B$18:$B$21),$U76="طن"),($Y76*$Z76),$Z76*AC76)),"") -> 0 | X76: 194534 | Z76: =IFERROR(IF(بيانات!$U76="نقلة",INDEX(الجدول35[[5 طن]:[وش]],MATCH(بيانات!$H76,الجدول35[عمود1],0),MATCH(بيانات!$AA76,الجدول35[[#Headers],[5 طن]:[وش]],0)),INDEX(الجدول3[[5 طن]:[وش]],MATCH(بيانات!$H76,الجدول3[عمود1],0),MATCH(بيانات!$AA76,الجدول3[[#Headers],[5 طن]:[وش]],0))),"") -> 100 | AA76: 5 طن | AF76: =IF(AND(بيانات!$Y76>=24,بيانات!$U76="طن",بيانات!$AA76="جرار"),بيانات!$Z76*بيانات!$Y76,بيانات!$Z76*24) -> 2400 | AG76: =IF(AND(بيانات!$Y76>=5,AND(بيانات!$U76="طن",بيانات!$AA76="5 طن")),بيانات!$Z76*بيانات!$Y76,بيانات!$Z76*5) -> 500 | AH76: =IF(بيانات!$U76="نقلة",بيانات!$Z76,"") -> 
A77: =بيانات!$X77 -> 194515 | B77: 2020-06-02 | C77: ابراهيم محمد | D77: 6847 | F77: العاشر | G77: 100 | H77: العاشر | U77: طن | W77: =IFERROR(IF($U77="نقلة",$Z77,IF(AND(Y77>=SUMIF(data!$A$18:$A$21,AA77,data!$B$18:$B$21),$U77="طن"),($Y77*$Z77),$Z77*AC77)),"") -> 0 | X77: 194515 | Z77: =IFERROR(IF(بيانات!$U77="نقلة",INDEX(الجدول35[[5 طن]:[وش]],MATCH(بيانات!$H77,الجدول35[عمود1],0),MATCH(بيانات!$AA77,الجدول35[[#Headers],[5 طن]:[وش]],0)),INDEX(الجدول3[[5 طن]:[وش]],MATCH(بيانات!$H77,الجدول3[عمود1],0),MATCH(بيانات!$AA77,الجدول3[[#Headers],[5 طن]:[وش]],0))),"") -> 40 | AA77: 5 طن | AF77: =IF(AND(بيانات!$Y77>=24,بيانات!$U77="طن",بيانات!$AA77="جرار"),بيانات!$Z77*بيانات!$Y77,بيانات!$Z77*24) -> 960 | AG77: =IF(AND(بيانات!$Y77>=5,AND(بيانات!$U77="طن",بيانات!$AA77="5 طن")),بيانات!$Z77*بيانات!$Y77,بيانات!$Z77*5) -> 200 | AH77: =IF(بيانات!$U77="نقلة",بيانات!$Z77,"") -> 
A78: =بيانات!$X78 -> 194486 | B78: 2020-06-02 | C78: هاني عبدالمنعم | D78: 9626 | F78: كفرالشيخ | G78: 500 | H78: كفر الشيخ | U78: طن | V78: 80 | W78: =IFERROR(IF($U78="نقلة",$Z78,IF(AND(Y78>=SUMIF(data!$A$18:$A$21,AA78,data!$B$18:$B$21),$U78="طن"),($Y78*$Z78),$Z78*AC78)),"") ->  | X78: 194486 | Z78: =IFERROR(IF(بيانات!$U78="نقلة",INDEX(الجدول35[[5 طن]:[وش]],MATCH(بيانات!$H78,الجدول35[عمود1],0),MATCH(بيانات!$AA78,الجدول35[[#Headers],[5 طن]:[وش]],0)),INDEX(الجدول3[[5 طن]:[وش]],MATCH(بيانات!$H78,الجدول3[عمود1],0),MATCH(بيانات!$AA78,الجدول3[[#Headers],[5 طن]:[وش]],0))),"") ->  | AA78: 5 طن | AF78: =IF(AND(بيانات!$Y78>=24,بيانات!$U78="طن",بيانات!$AA78="جرار"),بيانات!$Z78*بيانات!$Y78,بيانات!$Z78*24) ->  | AG78: =IF(AND(بيانات!$Y78>=5,AND(بيانات!$U78="طن",بيانات!$AA78="5 طن")),بيانات!$Z78*بيانات!$Y78,بيانات!$Z78*5) ->  | AH78: =IF(بيانات!$U78="نقلة",بيانات!$Z78,"") -> 
A79: =بيانات!$X79 -> 0 | B79: 2020-06-02 | C79: السعيد احمد | F79: بدون شغل | G79: 300 | S79: ابومازن | U79: طن | W79: =IFERROR(IF($U79="نقلة",$Z79,IF(AND(Y79>=SUMIF(data!$A$18:$A$21,AA79,data!$B$18:$B$21),$U79="طن"),($Y79*$Z79),$Z79*AC79)),"") ->  | Z79: =IFERROR(IF(بيانات!$U79="نقلة",INDEX(الجدول35[[5 طن]:[وش]],MATCH(بيانات!$H79,الجدول35[عمود1],0),MATCH(بيانات!$AA79,الجدول35[[#Headers],[5 طن]:[وش]],0)),INDEX(الجدول3[[5 طن]:[وش]],MATCH(بيانات!$H79,الجدول3[عمود1],0),MATCH(بيانات!$AA79,الجدول3[[#Headers],[5 طن]:[وش]],0))),"") ->  | AA79: 5 طن | AF79: =IF(AND(بيانات!$Y79>=24,بيانات!$U79="طن",بيانات!$AA79="جرار"),بيانات!$Z79*بيانات!$Y79,بيانات!$Z79*24) ->  | AG79: =IF(AND(بيانات!$Y79>=5,AND(بيانات!$U79="طن",بيانات!$AA79="5 طن")),بيانات!$Z79*بيانات!$Y79,بيانات!$Z79*5) ->  | AH79: =IF(بيانات!$U79="نقلة",بيانات!$Z79,"") -> 
A80: =بيانات!$X80 -> 194273 | B80: 2020-06-01 | C80: ابراهيم محمد | D80: 6847 | F80: القاهره | H80: القاهره | U80: طن | V80: 75 | W80: =IFERROR(IF($U80="نقلة",$Z80,IF(AND(Y80>=SUMIF(data!$A$18:$A$21,AA80,data!$B$18:$B$21),$U80="طن"),($Y80*$Z80),$Z80*AC80)),"") -> 0 | X80: 194273 | Z80: =IFERROR(IF(بيانات!$U80="نقلة",INDEX(الجدول35[[5 طن]:[وش]],MATCH(بيانات!$H80,الجدول35[عمود1],0),MATCH(بيانات!$AA80,الجدول35[[#Headers],[5 طن]:[وش]],0)),INDEX(الجدول3[[5 طن]:[وش]],MATCH(بيانات!$H80,الجدول3[عمود1],0),MATCH(بيانات!$AA80,الجدول3[[#Headers],[5 طن]:[وش]],0))),"") -> 100 | AA80: 5 طن | AF80: =IF(AND(بيانات!$Y80>=24,بيانات!$U80="طن",بيانات!$AA80="جرار"),بيانات!$Z80*بيانات!$Y80,بيانات!$Z80*24) -> 2400 | AG80: =IF(AND(بيانات!$Y80>=5,AND(بيانات!$U80="طن",بيانات!$AA80="5 طن")),بيانات!$Z80*بيانات!$Y80,بيانات!$Z80*5) -> 500 | AH80: =IF(بيانات!$U80="نقلة",بيانات!$Z80,"") -> 
A81: =بيانات!$X81 -> 0 | B81: 2020-06-03 | C81: عيد فتحي | F81: قاهره | U81: طن | W81: =IFERROR(IF($U81="نقلة",$Z81,IF(AND(Y81>=SUMIF(data!$A$18:$A$21,AA81,data!$B$18:$B$21),$U81="طن"),($Y81*$Z81),$Z81*AC81)),"") ->  | Z81: =IFERROR(IF(بيانات!$U81="نقلة",INDEX(الجدول35[[5 طن]:[وش]],MATCH(بيانات!$H81,الجدول35[عمود1],0),MATCH(بيانات!$AA81,الجدول35[[#Headers],[5 طن]:[وش]],0)),INDEX(الجدول3[[5 طن]:[وش]],MATCH(بيانات!$H81,الجدول3[عمود1],0),MATCH(بيانات!$AA81,الجدول3[[#Headers],[5 طن]:[وش]],0))),"") ->  | AA81: 5 طن | AF81: =IF(AND(بيانات!$Y81>=24,بيانات!$U81="طن",بيانات!$AA81="جرار"),بيانات!$Z81*بيانات!$Y81,بيانات!$Z81*24) ->  | AG81: =IF(AND(بيانات!$Y81>=5,AND(بيانات!$U81="طن",بيانات!$AA81="5 طن")),بيانات!$Z81*بيانات!$Y81,بيانات!$Z81*5) ->  | AH81: =IF(بيانات!$U81="نقلة",بيانات!$Z81,"") -> 
A82: =بيانات!$X82 -> 0 | B82: 2020-06-03 | C82: رمضان حمدي | D82: 1328 | F82: قاهره | G82: 100 | U82: طن | W82: =IFERROR(IF($U82="نقلة",$Z82,IF(AND(Y82>=SUMIF(data!$A$18:$A$21,AA82,data!$B$18:$B$21),$U82="طن"),($Y82*$Z82),$Z82*AC82)),"") ->  | Z82: =IFERROR(IF(بيانات!$U82="نقلة",INDEX(الجدول35[[5 طن]:[وش]],MATCH(بيانات!$H82,الجدول35[عمود1],0),MATCH(بيانات!$AA82,الجدول35[[#Headers],[5 طن]:[وش]],0)),INDEX(الجدول3[[5 طن]:[وش]],MATCH(بيانات!$H82,الجدول3[عمود1],0),MATCH(بيانات!$AA82,الجدول3[[#Headers],[5 طن]:[وش]],0))),"") ->  | AA82: 5 طن | AF82: =IF(AND(بيانات!$Y82>=24,بيانات!$U82="طن",بيانات!$AA82="جرار"),بيانات!$Z82*بيانات!$Y82,بيانات!$Z82*24) ->  | AG82: =IF(AND(بيانات!$Y82>=5,AND(بيانات!$U82="طن",بيانات!$AA82="5 طن")),بيانات!$Z82*بيانات!$Y82,بيانات!$Z82*5) ->  | AH82: =IF(بيانات!$U82="نقلة",بيانات!$Z82,"") -> 
A83: =بيانات!$X83 -> 0 | B83: 2020-06-03 | C83: خميس عبدالنبي | F83: اسكندريه | G83: 700 | U83: طن | W83: =IFERROR(IF($U83="نقلة",$Z83,IF(AND(Y83>=SUMIF(data!$A$18:$A$21,AA83,data!$B$18:$B$21),$U83="طن"),($Y83*$Z83),$Z83*AC83)),"") ->  | Z83: =IFERROR(IF(بيانات!$U83="نقلة",INDEX(الجدول35[[5 طن]:[وش]],MATCH(بيانات!$H83,الجدول35[عمود1],0),MATCH(بيانات!$AA83,الجدول35[[#Headers],[5 طن]:[وش]],0)),INDEX(الجدول3[[5 طن]:[وش]],MATCH(بيانات!$H83,الجدول3[عمود1],0),MATCH(بيانات!$AA83,الجدول3[[#Headers],[5 طن]:[وش]],0))),"") ->  | AA83: 5 طن | AF83: =IF(AND(بيانات!$Y83>=24,بيانات!$U83="طن",بيانات!$AA83="جرار"),بيانات!$Z83*بيانات!$Y83,بيانات!$Z83*24) ->  | AG83: =IF(AND(بيانات!$Y83>=5,AND(بيانات!$U83="طن",بيانات!$AA83="5 طن")),بيانات!$Z83*بيانات!$Y83,بيانات!$Z83*5) ->  | AH83: =IF(بيانات!$U83="نقلة",بيانات!$Z83,"") -> 
A84: =بيانات!$X84 -> 0 | B84: 2020-06-03 | C84: مصطفي عزت | F84: طوخ | G84: 300 | U84: طن | W84: =IFERROR(IF($U84="نقلة",$Z84,IF(AND(Y84>=SUMIF(data!$A$18:$A$21,AA84,data!$B$18:$B$21),$U84="طن"),($Y84*$Z84),$Z84*AC84)),"") ->  | Z84: =IFERROR(IF(بيانات!$U84="نقلة",INDEX(الجدول35[[5 طن]:[وش]],MATCH(بيانات!$H84,الجدول35[عمود1],0),MATCH(بيانات!$AA84,الجدول35[[#Headers],[5 طن]:[وش]],0)),INDEX(الجدول3[[5 طن]:[وش]],MATCH(بيانات!$H84,الجدول3[عمود1],0),MATCH(بيانات!$AA84,الجدول3[[#Headers],[5 طن]:[وش]],0))),"") ->  | AA84: 5 طن | AF84: =IF(AND(بيانات!$Y84>=24,بيانات!$U84="طن",بيانات!$AA84="جرار"),بيانات!$Z84*بيانات!$Y84,بيانات!$Z84*24) ->  | AG84: =IF(AND(بيانات!$Y84>=5,AND(بيانات!$U84="طن",بيانات!$AA84="5 طن")),بيانات!$Z84*بيانات!$Y84,بيانات!$Z84*5) ->  | AH84: =IF(بيانات!$U84="نقلة",بيانات!$Z84,"") -> 
A85: =بيانات!$X85 -> 0 | B85: 2020-06-03 | C85: ابراهيم حامد | F85: قليوب | G85: 300 | U85: طن | W85: =IFERROR(IF($U85="نقلة",$Z85,IF(AND(Y85>=SUMIF(data!$A$18:$A$21,AA85,data!$B$18:$B$21),$U85="طن"),($Y85*$Z85),$Z85*AC85)),"") ->  | Z85: =IFERROR(IF(بيانات!$U85="نقلة",INDEX(الجدول35[[5 طن]:[وش]],MATCH(بيانات!$H85,الجدول35[عمود1],0),MATCH(بيانات!$AA85,الجدول35[[#Headers],[5 طن]:[وش]],0)),INDEX(الجدول3[[5 طن]:[وش]],MATCH(بيانات!$H85,الجدول3[عمود1],0),MATCH(بيانات!$AA85,الجدول3[[#Headers],[5 طن]:[وش]],0))),"") ->  | AA85: 5 طن | AF85: =IF(AND(بيانات!$Y85>=24,بيانات!$U85="طن",بيانات!$AA85="جرار"),بيانات!$Z85*بيانات!$Y85,بيانات!$Z85*24) ->  | AG85: =IF(AND(بيانات!$Y85>=5,AND(بيانات!$U85="طن",بيانات!$AA85="5 طن")),بيانات!$Z85*بيانات!$Y85,بيانات!$Z85*5) ->  | AH85: =IF(بيانات!$U85="نقلة",بيانات!$Z85,"") -> 
A86: =بيانات!$X86 -> 0 | B86: 2020-06-03 | C86: ابراهيم حسن | D86: 6718 | F86: اسكندريه | G86: 500 | R86: 1000 | S86: لفه4 | U86: طن | W86: =IFERROR(IF($U86="نقلة",$Z86,IF(AND(Y86>=SUMIF(data!$A$18:$A$21,AA86,data!$B$18:$B$21),$U86="طن"),($Y86*$Z86),$Z86*AC86)),"") ->  | Z86: =IFERROR(IF(بيانات!$U86="نقلة",INDEX(الجدول35[[5 طن]:[وش]],MATCH(بيانات!$H86,الجدول35[عمود1],0),MATCH(بيانات!$AA86,الجدول35[[#Headers],[5 طن]:[وش]],0)),INDEX(الجدول3[[5 طن]:[وش]],MATCH(بيانات!$H86,الجدول3[عمود1],0),MATCH(بيانات!$AA86,الجدول3[[#Headers],[5 طن]:[وش]],0))),"") ->  | AA86: 5 طن | AF86: =IF(AND(بيانات!$Y86>=24,بيانات!$U86="طن",بيانات!$AA86="جرار"),بيانات!$Z86*بيانات!$Y86,بيانات!$Z86*24) ->  | AG86: =IF(AND(بيانات!$Y86>=5,AND(بيانات!$U86="طن",بيانات!$AA86="5 طن")),بيانات!$Z86*بيانات!$Y86,بيانات!$Z86*5) ->  | AH86: =IF(بيانات!$U86="نقلة",بيانات!$Z86,"") -> 
A87: =بيانات!$X87 -> 0 | B87: 2020-06-03 | C87: اسلام محمد | D87: 1487 | F87: قاهره | G87: 300 | U87: طن | W87: =IFERROR(IF($U87="نقلة",$Z87,IF(AND(Y87>=SUMIF(data!$A$18:$A$21,AA87,data!$B$18:$B$21),$U87="طن"),($Y87*$Z87),$Z87*AC87)),"") ->  | Z87: =IFERROR(IF(بيانات!$U87="نقلة",INDEX(الجدول35[[5 طن]:[وش]],MATCH(بيانات!$H87,الجدول35[عمود1],0),MATCH(بيانات!$AA87,الجدول35[[#Headers],[5 طن]:[وش]],0)),INDEX(الجدول3[[5 طن]:[وش]],MATCH(بيانات!$H87,الجدول3[عمود1],0),MATCH(بيانات!$AA87,الجدول3[[#Headers],[5 طن]:[وش]],0))),"") ->  | AA87: 5 طن | AF87: =IF(AND(بيانات!$Y87>=24,بيانات!$U87="طن",بيانات!$AA87="جرار"),بيانات!$Z87*بيانات!$Y87,بيانات!$Z87*24) ->  | AG87: =IF(AND(بيانات!$Y87>=5,AND(بيانات!$U87="طن",بيانات!$AA87="5 طن")),بيانات!$Z87*بيانات!$Y87,بيانات!$Z87*5) ->  | AH87: =IF(بيانات!$U87="نقلة",بيانات!$Z87,"") -> 
A88: =بيانات!$X88 -> 0 | B88: 2020-06-03 | C88: محمود حسن | F88: بور سعيد | G88: 150 | U88: طن | W88: =IFERROR(IF($U88="نقلة",$Z88,IF(AND(Y88>=SUMIF(data!$A$18:$A$21,AA88,data!$B$18:$B$21),$U88="طن"),($Y88*$Z88),$Z88*AC88)),"") ->  | Z88: =IFERROR(IF(بيانات!$U88="نقلة",INDEX(الجدول35[[5 طن]:[وش]],MATCH(بيانات!$H88,الجدول35[عمود1],0),MATCH(بيانات!$AA88,الجدول35[[#Headers],[5 طن]:[وش]],0)),INDEX(الجدول3[[5 طن]:[وش]],MATCH(بيانات!$H88,الجدول3[عمود1],0),MATCH(بيانات!$AA88,الجدول3[[#Headers],[5 طن]:[وش]],0))),"") ->  | AA88: 5 طن | AF88: =IF(AND(بيانات!$Y88>=24,بيانات!$U88="طن",بيانات!$AA88="جرار"),بيانات!$Z88*بيانات!$Y88,بيانات!$Z88*24) ->  | AG88: =IF(AND(بيانات!$Y88>=5,AND(بيانات!$U88="طن",بيانات!$AA88="5 طن")),بيانات!$Z88*بيانات!$Y88,بيانات!$Z88*5) ->  | AH88: =IF(بيانات!$U88="نقلة",بيانات!$Z88,"") -> 
A89: =بيانات!$X89 -> 0 | B89: 2020-06-03 | C89: محمد صلاح | D89: 8576 | F89: بحيره | G89: 200 | R89: 680 | U89: طن | W89: =IFERROR(IF($U89="نقلة",$Z89,IF(AND(Y89>=SUMIF(data!$A$18:$A$21,AA89,data!$B$18:$B$21),$U89="طن"),($Y89*$Z89),$Z89*AC89)),"") ->  | Z89: =IFERROR(IF(بيانات!$U89="نقلة",INDEX(الجدول35[[5 طن]:[وش]],MATCH(بيانات!$H89,الجدول35[عمود1],0),MATCH(بيانات!$AA89,الجدول35[[#Headers],[5 طن]:[وش]],0)),INDEX(الجدول3[[5 طن]:[وش]],MATCH(بيانات!$H89,الجدول3[عمود1],0),MATCH(بيانات!$AA89,الجدول3[[#Headers],[5 طن]:[وش]],0))),"") ->  | AA89: 5 طن | AF89: =IF(AND(بيانات!$Y89>=24,بيانات!$U89="طن",بيانات!$AA89="جرار"),بيانات!$Z89*بيانات!$Y89,بيانات!$Z89*24) ->  | AG89: =IF(AND(بيانات!$Y89>=5,AND(بيانات!$U89="طن",بيانات!$AA89="5 طن")),بيانات!$Z89*بيانات!$Y89,بيانات!$Z89*5) ->  | AH89: =IF(بيانات!$U89="نقلة",بيانات!$Z89,"") -> 
A90: =بيانات!$X90 -> 0 | B90: 2020-06-03 | C90: عبده السيد | F90: اكتوبر | G90: 100 | R90: 680 | U90: طن | W90: =IFERROR(IF($U90="نقلة",$Z90,IF(AND(Y90>=SUMIF(data!$A$18:$A$21,AA90,data!$B$18:$B$21),$U90="طن"),($Y90*$Z90),$Z90*AC90)),"") ->  | Z90: =IFERROR(IF(بيانات!$U90="نقلة",INDEX(الجدول35[[5 طن]:[وش]],MATCH(بيانات!$H90,الجدول35[عمود1],0),MATCH(بيانات!$AA90,الجدول35[[#Headers],[5 طن]:[وش]],0)),INDEX(الجدول3[[5 طن]:[وش]],MATCH(بيانات!$H90,الجدول3[عمود1],0),MATCH(بيانات!$AA90,الجدول3[[#Headers],[5 طن]:[وش]],0))),"") ->  | AA90: 5 طن | AF90: =IF(AND(بيانات!$Y90>=24,بيانات!$U90="طن",بيانات!$AA90="جرار"),بيانات!$Z90*بيانات!$Y90,بيانات!$Z90*24) ->  | AG90: =IF(AND(بيانات!$Y90>=5,AND(بيانات!$U90="طن",بيانات!$AA90="5 طن")),بيانات!$Z90*بيانات!$Y90,بيانات!$Z90*5) ->  | AH90: =IF(بيانات!$U90="نقلة",بيانات!$Z90,"") -> 
A91: =بيانات!$X91 -> 0 | B91: 2020-06-03 | C91: محمد فوزي | D91: 4139 | F91: يثرب | G91: 300 | U91: طن | W91: =IFERROR(IF($U91="نقلة",$Z91,IF(AND(Y91>=SUMIF(data!$A$18:$A$21,AA91,data!$B$18:$B$21),$U91="طن"),($Y91*$Z91),$Z91*AC91)),"") ->  | Z91: =IFERROR(IF(بيانات!$U91="نقلة",INDEX(الجدول35[[5 طن]:[وش]],MATCH(بيانات!$H91,الجدول35[عمود1],0),MATCH(بيانات!$AA91,الجدول35[[#Headers],[5 طن]:[وش]],0)),INDEX(الجدول3[[5 طن]:[وش]],MATCH(بيانات!$H91,الجدول3[عمود1],0),MATCH(بيانات!$AA91,الجدول3[[#Headers],[5 طن]:[وش]],0))),"") ->  | AA91: 5 طن | AF91: =IF(AND(بيانات!$Y91>=24,بيانات!$U91="طن",بيانات!$AA91="جرار"),بيانات!$Z91*بيانات!$Y91,بيانات!$Z91*24) ->  | AG91: =IF(AND(بيانات!$Y91>=5,AND(بيانات!$U91="طن",بيانات!$AA91="5 طن")),بيانات!$Z91*بيانات!$Y91,بيانات!$Z91*5) ->  | AH91: =IF(بيانات!$U91="نقلة",بيانات!$Z91,"") -> 
A92: =بيانات!$X92 -> 0 | B92: 2020-06-03 | C92: مصطفي عزت | F92: ام زغو | G92: 600 | U92: طن | W92: =IFERROR(IF($U92="نقلة",$Z92,IF(AND(Y92>=SUMIF(data!$A$18:$A$21,AA92,data!$B$18:$B$21),$U92="طن"),($Y92*$Z92),$Z92*AC92)),"") ->  | Z92: =IFERROR(IF(بيانات!$U92="نقلة",INDEX(الجدول35[[5 طن]:[وش]],MATCH(بيانات!$H92,الجدول35[عمود1],0),MATCH(بيانات!$AA92,الجدول35[[#Headers],[5 طن]:[وش]],0)),INDEX(الجدول3[[5 طن]:[وش]],MATCH(بيانات!$H92,الجدول3[عمود1],0),MATCH(بيانات!$AA92,الجدول3[[#Headers],[5 طن]:[وش]],0))),"") ->  | AA92: 5 طن | AF92: =IF(AND(بيانات!$Y92>=24,بيانات!$U92="طن",بيانات!$AA92="جرار"),بيانات!$Z92*بيانات!$Y92,بيانات!$Z92*24) ->  | AG92: =IF(AND(بيانات!$Y92>=5,AND(بيانات!$U92="طن",بيانات!$AA92="5 طن")),بيانات!$Z92*بيانات!$Y92,بيانات!$Z92*5) ->  | AH92: =IF(بيانات!$U92="نقلة",بيانات!$Z92,"") -> 
A93: =بيانات!$X93 -> 0 | B93: 2020-06-03 | C93: علاء شحاته | D93: 7462 | F93: سوق دوت كوم | G93: 100 | U93: طن | W93: =IFERROR(IF($U93="نقلة",$Z93,IF(AND(Y93>=SUMIF(data!$A$18:$A$21,AA93,data!$B$18:$B$21),$U93="طن"),($Y93*$Z93),$Z93*AC93)),"") ->  | Z93: =IFERROR(IF(بيانات!$U93="نقلة",INDEX(الجدول35[[5 طن]:[وش]],MATCH(بيانات!$H93,الجدول35[عمود1],0),MATCH(بيانات!$AA93,الجدول35[[#Headers],[5 طن]:[وش]],0)),INDEX(الجدول3[[5 طن]:[وش]],MATCH(بيانات!$H93,الجدول3[عمود1],0),MATCH(بيانات!$AA93,الجدول3[[#Headers],[5 طن]:[وش]],0))),"") ->  | AA93: 5 طن | AF93: =IF(AND(بيانات!$Y93>=24,بيانات!$U93="طن",بيانات!$AA93="جرار"),بيانات!$Z93*بيانات!$Y93,بيانات!$Z93*24) ->  | AG93: =IF(AND(بيانات!$Y93>=5,AND(بيانات!$U93="طن",بيانات!$AA93="5 طن")),بيانات!$Z93*بيانات!$Y93,بيانات!$Z93*5) ->  | AH93: =IF(بيانات!$U93="نقلة",بيانات!$Z93,"") -> 
A94: =بيانات!$X94 -> 0 | B94: 2020-06-03 | C94: هاني سامي | F94: ترست | G94: 700 | U94: طن | W94: =IFERROR(IF($U94="نقلة",$Z94,IF(AND(Y94>=SUMIF(data!$A$18:$A$21,AA94,data!$B$18:$B$21),$U94="طن"),($Y94*$Z94),$Z94*AC94)),"") ->  | Z94: =IFERROR(IF(بيانات!$U94="نقلة",INDEX(الجدول35[[5 طن]:[وش]],MATCH(بيانات!$H94,الجدول35[عمود1],0),MATCH(بيانات!$AA94,الجدول35[[#Headers],[5 طن]:[وش]],0)),INDEX(الجدول3[[5 طن]:[وش]],MATCH(بيانات!$H94,الجدول3[عمود1],0),MATCH(بيانات!$AA94,الجدول3[[#Headers],[5 طن]:[وش]],0))),"") ->  | AA94: 5 طن | AF94: =IF(AND(بيانات!$Y94>=24,بيانات!$U94="طن",بيانات!$AA94="جرار"),بيانات!$Z94*بيانات!$Y94,بيانات!$Z94*24) ->  | AG94: =IF(AND(بيانات!$Y94>=5,AND(بيانات!$U94="طن",بيانات!$AA94="5 طن")),بيانات!$Z94*بيانات!$Y94,بيانات!$Z94*5) ->  | AH94: =IF(بيانات!$U94="نقلة",بيانات!$Z94,"") -> 
A95: =بيانات!$X95 -> 0 | B95: 2020-06-03 | C95: فريد محمد | F95: الغردقه | G95: 1500 | U95: طن | W95: =IFERROR(IF($U95="نقلة",$Z95,IF(AND(Y95>=SUMIF(data!$A$18:$A$21,AA95,data!$B$18:$B$21),$U95="طن"),($Y95*$Z95),$Z95*AC95)),"") ->  | Z95: =IFERROR(IF(بيانات!$U95="نقلة",INDEX(الجدول35[[5 طن]:[وش]],MATCH(بيانات!$H95,الجدول35[عمود1],0),MATCH(بيانات!$AA95,الجدول35[[#Headers],[5 طن]:[وش]],0)),INDEX(الجدول3[[5 طن]:[وش]],MATCH(بيانات!$H95,الجدول3[عمود1],0),MATCH(بيانات!$AA95,الجدول3[[#Headers],[5 طن]:[وش]],0))),"") ->  | AA95: 5 طن | AF95: =IF(AND(بيانات!$Y95>=24,بيانات!$U95="طن",بيانات!$AA95="جرار"),بيانات!$Z95*بيانات!$Y95,بيانات!$Z95*24) ->  | AG95: =IF(AND(بيانات!$Y95>=5,AND(بيانات!$U95="طن",بيانات!$AA95="5 طن")),بيانات!$Z95*بيانات!$Y95,بيانات!$Z95*5) ->  | AH95: =IF(بيانات!$U95="نقلة",بيانات!$Z95,"") -> 
A96: =بيانات!$X96 -> 0 | B96: 2020-06-03 | C96: محمود احمد | D96: 7421 | F96: قاهره | G96: 300 | U96: طن | W96: =IFERROR(IF($U96="نقلة",$Z96,IF(AND(Y96>=SUMIF(data!$A$18:$A$21,AA96,data!$B$18:$B$21),$U96="طن"),($Y96*$Z96),$Z96*AC96)),"") ->  | Z96: =IFERROR(IF(بيانات!$U96="نقلة",INDEX(الجدول35[[5 طن]:[وش]],MATCH(بيانات!$H96,الجدول35[عمود1],0),MATCH(بيانات!$AA96,الجدول35[[#Headers],[5 طن]:[وش]],0)),INDEX(الجدول3[[5 طن]:[وش]],MATCH(بيانات!$H96,الجدول3[عمود1],0),MATCH(بيانات!$AA96,الجدول3[[#Headers],[5 طن]:[وش]],0))),"") ->  | AA96: 5 طن | AF96: =IF(AND(بيانات!$Y96>=24,بيانات!$U96="طن",بيانات!$AA96="جرار"),بيانات!$Z96*بيانات!$Y96,بيانات!$Z96*24) ->  | AG96: =IF(AND(بيانات!$Y96>=5,AND(بيانات!$U96="طن",بيانات!$AA96="5 طن")),بيانات!$Z96*بيانات!$Y96,بيانات!$Z96*5) ->  | AH96: =IF(بيانات!$U96="نقلة",بيانات!$Z96,"") -> 
A97: =بيانات!$X97 -> 194729 | B97: 2020-06-03 | C97: بشير السيد | D97: 3751 | F97: العاشر | G97: 100 | H97: العاشر | U97: طن | W97: =IFERROR(IF($U97="نقلة",$Z97,IF(AND(Y97>=SUMIF(data!$A$18:$A$21,AA97,data!$B$18:$B$21),$U97="طن"),($Y97*$Z97),$Z97*AC97)),"") -> 0 | X97: 194729 | Z97: =IFERROR(IF(بيانات!$U97="نقلة",INDEX(الجدول35[[5 طن]:[وش]],MATCH(بيانات!$H97,الجدول35[عمود1],0),MATCH(بيانات!$AA97,الجدول35[[#Headers],[5 طن]:[وش]],0)),INDEX(الجدول3[[5 طن]:[وش]],MATCH(بيانات!$H97,الجدول3[عمود1],0),MATCH(بيانات!$AA97,الجدول3[[#Headers],[5 طن]:[وش]],0))),"") -> 40 | AA97: 5 طن | AF97: =IF(AND(بيانات!$Y97>=24,بيانات!$U97="طن",بيانات!$AA97="جرار"),بيانات!$Z97*بيانات!$Y97,بيانات!$Z97*24) -> 960 | AG97: =IF(AND(بيانات!$Y97>=5,AND(بيانات!$U97="طن",بيانات!$AA97="5 طن")),بيانات!$Z97*بيانات!$Y97,بيانات!$Z97*5) -> 200 | AH97: =IF(بيانات!$U97="نقلة",بيانات!$Z97,"") -> 
A98: =بيانات!$X98 -> 0 | B98: 2020-06-03 | C98: احمد رافت | D98: 7918 | F98: ابيس | G98: 150 | R98: 680 | U98: طن | W98: =IFERROR(IF($U98="نقلة",$Z98,IF(AND(Y98>=SUMIF(data!$A$18:$A$21,AA98,data!$B$18:$B$21),$U98="طن"),($Y98*$Z98),$Z98*AC98)),"") ->  | Z98: =IFERROR(IF(بيانات!$U98="نقلة",INDEX(الجدول35[[5 طن]:[وش]],MATCH(بيانات!$H98,الجدول35[عمود1],0),MATCH(بيانات!$AA98,الجدول35[[#Headers],[5 طن]:[وش]],0)),INDEX(الجدول3[[5 طن]:[وش]],MATCH(بيانات!$H98,الجدول3[عمود1],0),MATCH(بيانات!$AA98,الجدول3[[#Headers],[5 طن]:[وش]],0))),"") ->  | AA98: 5 طن | AF98: =IF(AND(بيانات!$Y98>=24,بيانات!$U98="طن",بيانات!$AA98="جرار"),بيانات!$Z98*بيانات!$Y98,بيانات!$Z98*24) ->  | AG98: =IF(AND(بيانات!$Y98>=5,AND(بيانات!$U98="طن",بيانات!$AA98="5 طن")),بيانات!$Z98*بيانات!$Y98,بيانات!$Z98*5) ->  | AH98: =IF(بيانات!$U98="نقلة",بيانات!$Z98,"") -> 
A99: =بيانات!$X99 -> 0 | B99: 2020-06-03 | C99: حامد رفعت | D99: 1698 | F99: ابيس | G99: 150 | R99: 680 | U99: طن | W99: =IFERROR(IF($U99="نقلة",$Z99,IF(AND(Y99>=SUMIF(data!$A$18:$A$21,AA99,data!$B$18:$B$21),$U99="طن"),($Y99*$Z99),$Z99*AC99)),"") ->  | Z99: =IFERROR(IF(بيانات!$U99="نقلة",INDEX(الجدول35[[5 طن]:[وش]],MATCH(بيانات!$H99,الجدول35[عمود1],0),MATCH(بيانات!$AA99,الجدول35[[#Headers],[5 طن]:[وش]],0)),INDEX(الجدول3[[5 طن]:[وش]],MATCH(بيانات!$H99,الجدول3[عمود1],0),MATCH(بيانات!$AA99,الجدول3[[#Headers],[5 طن]:[وش]],0))),"") ->  | AA99: 5 طن | AF99: =IF(AND(بيانات!$Y99>=24,بيانات!$U99="طن",بيانات!$AA99="جرار"),بيانات!$Z99*بيانات!$Y99,بيانات!$Z99*24) ->  | AG99: =IF(AND(بيانات!$Y99>=5,AND(بيانات!$U99="طن",بيانات!$AA99="5 طن")),بيانات!$Z99*بيانات!$Y99,بيانات!$Z99*5) ->  | AH99: =IF(بيانات!$U99="نقلة",بيانات!$Z99,"") -> 
A100: =بيانات!$X100 -> 0 | B100: 2020-06-03 | C100: رمضان محمود | D100: 7293 | F100: السادات | G100: 100 | R100: 680 | U100: طن | W100: =IFERROR(IF($U100="نقلة",$Z100,IF(AND(Y100>=SUMIF(data!$A$18:$A$21,AA100,data!$B$18:$B$21),$U100="طن"),($Y100*$Z100),$Z100*AC100)),"") ->  | Z100: =IFERROR(IF(بيانات!$U100="نقلة",INDEX(الجدول35[[5 طن]:[وش]],MATCH(بيانات!$H100,الجدول35[عمود1],0),MATCH(بيانات!$AA100,الجدول35[[#Headers],[5 طن]:[وش]],0)),INDEX(الجدول3[[5 طن]:[وش]],MATCH(بيانات!$H100,الجدول3[عمود1],0),MATCH(بيانات!$AA100,الجدول3[[#Headers],[5 طن]:[وش]],0))),"") ->  | AA100: 5 طن | AF100: =IF(AND(بيانات!$Y100>=24,بيانات!$U100="طن",بيانات!$AA100="جرار"),بيانات!$Z100*بيانات!$Y100,بيانات!$Z100*24) ->  | AG100: =IF(AND(بيانات!$Y100>=5,AND(بيانات!$U100="طن",بيانات!$AA100="5 طن")),بيانات!$Z100*بيانات!$Y100,بيانات!$Z100*5) ->  | AH100: =IF(بيانات!$U100="نقلة",بيانات!$Z100,"") -> 
A101: =بيانات!$X101 -> 0 | B101: 2020-06-03 | C101: ابراهيم محمد | F101: قويسنا | G101: 500 | U101: طن | W101: =IFERROR(IF($U101="نقلة",$Z101,IF(AND(Y101>=SUMIF(data!$A$18:$A$21,AA101,data!$B$18:$B$21),$U101="طن"),($Y101*$Z101),$Z101*AC101)),"") ->  | Z101: =IFERROR(IF(بيانات!$U101="نقلة",INDEX(الجدول35[[5 طن]:[وش]],MATCH(بيانات!$H101,الجدول35[عمود1],0),MATCH(بيانات!$AA101,الجدول35[[#Headers],[5 طن]:[وش]],0)),INDEX(الجدول3[[5 طن]:[وش]],MATCH(بيانات!$H101,الجدول3[عمود1],0),MATCH(بيانات!$AA101,الجدول3[[#Headers],[5 طن]:[وش]],0))),"") ->  | AA101: 5 طن | AF101: =IF(AND(بيانات!$Y101>=24,بيانات!$U101="طن",بيانات!$AA101="جرار"),بيانات!$Z101*بيانات!$Y101,بيانات!$Z101*24) ->  | AG101: =IF(AND(بيانات!$Y101>=5,AND(بيانات!$U101="طن",بيانات!$AA101="5 طن")),بيانات!$Z101*بيانات!$Y101,بيانات!$Z101*5) ->  | AH101: =IF(بيانات!$U101="نقلة",بيانات!$Z101,"") -> 
A102: =بيانات!$X102 -> 0 | B102: 2020-06-03 | C102: جمال عبدالناصر | D102: 8152 | F102: بحيره الروان | G102: 500 | U102: طن | W102: =IFERROR(IF($U102="نقلة",$Z102,IF(AND(Y102>=SUMIF(data!$A$18:$A$21,AA102,data!$B$18:$B$21),$U102="طن"),($Y102*$Z102),$Z102*AC102)),"") ->  | Z102: =IFERROR(IF(بيانات!$U102="نقلة",INDEX(الجدول35[[5 طن]:[وش]],MATCH(بيانات!$H102,الجدول35[عمود1],0),MATCH(بيانات!$AA102,الجدول35[[#Headers],[5 طن]:[وش]],0)),INDEX(الجدول3[[5 طن]:[وش]],MATCH(بيانات!$H102,الجدول3[عمود1],0),MATCH(بيانات!$AA102,الجدول3[[#Headers],[5 طن]:[وش]],0))),"") ->  | AA102: 5 طن | AF102: =IF(AND(بيانات!$Y102>=24,بيانات!$U102="طن",بيانات!$AA102="جرار"),بيانات!$Z102*بيانات!$Y102,بيانات!$Z102*24) ->  | AG102: =IF(AND(بيانات!$Y102>=5,AND(بيانات!$U102="طن",بيانات!$AA102="5 طن")),بيانات!$Z102*بيانات!$Y102,بيانات!$Z102*5) ->  | AH102: =IF(بيانات!$U102="نقلة",بيانات!$Z102,"") -> 
A103: =بيانات!$X103 -> 0 | B103: 2020-06-03 | C103: محمد عادل | D103: 1279 | F103: هايبر اكتوبر | G103: 100 | U103: نقلة | W103: =IFERROR(IF($U103="نقلة",$Z103,IF(AND(Y103>=SUMIF(data!$A$18:$A$21,AA103,data!$B$18:$B$21),$U103="طن"),($Y103*$Z103),$Z103*AC103)),"") ->  | Z103: =IFERROR(IF(بيانات!$U103="نقلة",INDEX(الجدول35[[5 طن]:[وش]],MATCH(بيانات!$H103,الجدول35[عمود1],0),MATCH(بيانات!$AA103,الجدول35[[#Headers],[5 طن]:[وش]],0)),INDEX(الجدول3[[5 طن]:[وش]],MATCH(بيانات!$H103,الجدول3[عمود1],0),MATCH(بيانات!$AA103,الجدول3[[#Headers],[5 طن]:[وش]],0))),"") ->  | AA103: 5 طن | AF103: =IF(AND(بيانات!$Y103>=24,بيانات!$U103="طن",بيانات!$AA103="جرار"),بيانات!$Z103*بيانات!$Y103,بيانات!$Z103*24) ->  | AG103: =IF(AND(بيانات!$Y103>=5,AND(بيانات!$U103="طن",بيانات!$AA103="5 طن")),بيانات!$Z103*بيانات!$Y103,بيانات!$Z103*5) ->  | AH103: =IF(بيانات!$U103="نقلة",بيانات!$Z103,"") -> 
A104: =بيانات!$X104 -> 0 | B104: 2020-06-03 | C104: هاني عبدالمنعم | D104: 9626 | F104: كفرالشيخ | G104: 500 | U104: نقلة | W104: =IFERROR(IF($U104="نقلة",$Z104,IF(AND(Y104>=SUMIF(data!$A$18:$A$21,AA104,data!$B$18:$B$21),$U104="طن"),($Y104*$Z104),$Z104*AC104)),"") ->  | Z104: =IFERROR(IF(بيانات!$U104="نقلة",INDEX(الجدول35[[5 طن]:[وش]],MATCH(بيانات!$H104,الجدول35[عمود1],0),MATCH(بيانات!$AA104,الجدول35[[#Headers],[5 طن]:[وش]],0)),INDEX(الجدول3[[5 طن]:[وش]],MATCH(بيانات!$H104,الجدول3[عمود1],0),MATCH(بيانات!$AA104,الجدول3[[#Headers],[5 طن]:[وش]],0))),"") ->  | AA104: 5 طن | AF104: =IF(AND(بيانات!$Y104>=24,بيانات!$U104="طن",بيانات!$AA104="جرار"),بيانات!$Z104*بيانات!$Y104,بيانات!$Z104*24) ->  | AG104: =IF(AND(بيانات!$Y104>=5,AND(بيانات!$U104="طن",بيانات!$AA104="5 طن")),بيانات!$Z104*بيانات!$Y104,بيانات!$Z104*5) ->  | AH104: =IF(بيانات!$U104="نقلة",بيانات!$Z104,"") -> 
A105: =بيانات!$X105 -> 876578 | B105: 2020-06-03 | C105: ابراهيم عطيه | F105: دمياط | G105: 1000 | H105: الاسكندريه | U105: طن | W105: =IFERROR(IF($U105="نقلة",$Z105,IF(AND(Y105>=SUMIF(data!$A$18:$A$21,AA105,data!$B$18:$B$21),$U105="طن"),($Y105*$Z105),$Z105*AC105)),"") -> 0 | X105: 876578 | Z105: =IFERROR(IF(بيانات!$U105="نقلة",INDEX(الجدول35[[5 طن]:[وش]],MATCH(بيانات!$H105,الجدول35[عمود1],0),MATCH(بيانات!$AA105,الجدول35[[#Headers],[5 طن]:[وش]],0)),INDEX(الجدول3[[5 طن]:[وش]],MATCH(بيانات!$H105,الجدول3[عمود1],0),MATCH(بيانات!$AA105,الجدول3[[#Headers],[5 طن]:[وش]],0))),"") -> 150 | AA105: وش | AF105: =IF(AND(بيانات!$Y105>=24,بيانات!$U105="طن",بيانات!$AA105="جرار"),بيانات!$Z105*بيانات!$Y105,بيانات!$Z105*24) -> 3600 | AG105: =IF(AND(بيانات!$Y105>=5,AND(بيانات!$U105="طن",بيانات!$AA105="5 طن")),بيانات!$Z105*بيانات!$Y105,بيانات!$Z105*5) -> 750 | AH105: =IF(بيانات!$U105="نقلة",بيانات!$Z105,"") -> 
A106: =بيانات!$X106 -> 0 | B106: 2020-06-03 | C106: نبيل رجب | F106: بروفت | G106: 400 | U106: طن | W106: =IFERROR(IF($U106="نقلة",$Z106,IF(AND(Y106>=SUMIF(data!$A$18:$A$21,AA106,data!$B$18:$B$21),$U106="طن"),($Y106*$Z106),$Z106*AC106)),"") ->  | Z106: =IFERROR(IF(بيانات!$U106="نقلة",INDEX(الجدول35[[5 طن]:[وش]],MATCH(بيانات!$H106,الجدول35[عمود1],0),MATCH(بيانات!$AA106,الجدول35[[#Headers],[5 طن]:[وش]],0)),INDEX(الجدول3[[5 طن]:[وش]],MATCH(بيانات!$H106,الجدول3[عمود1],0),MATCH(بيانات!$AA106,الجدول3[[#Headers],[5 طن]:[وش]],0))),"") ->  | AA106: 5 طن | AF106: =IF(AND(بيانات!$Y106>=24,بيانات!$U106="طن",بيانات!$AA106="جرار"),بيانات!$Z106*بيانات!$Y106,بيانات!$Z106*24) ->  | AG106: =IF(AND(بيانات!$Y106>=5,AND(بيانات!$U106="طن",بيانات!$AA106="5 طن")),بيانات!$Z106*بيانات!$Y106,بيانات!$Z106*5) ->  | AH106: =IF(بيانات!$U106="نقلة",بيانات!$Z106,"") -> 
A107: =بيانات!$X107 -> 0 | B107: 2020-05-21 | C107: حسام حسن | D107: 523 | I107: 15 | S107: فرق ميزان | U107: طن | W107: =IFERROR(IF($U107="نقلة",$Z107,IF(AND(Y107>=SUMIF(data!$A$18:$A$21,AA107,data!$B$18:$B$21),$U107="طن"),($Y107*$Z107),$Z107*AC107)),"") -> 0 | AF107: =IF(AND(بيانات!$Y107>=24,بيانات!$U107="طن",بيانات!$AA107="جرار"),بيانات!$Z107*بيانات!$Y107,بيانات!$Z107*24) -> 0 | AG107: =IF(AND(بيانات!$Y107>=5,AND(بيانات!$U107="طن",بيانات!$AA107="5 طن")),بيانات!$Z107*بيانات!$Y107,بيانات!$Z107*5) -> 0 | AH107: =IF(بيانات!$U107="نقلة",بيانات!$Z107,"") -> 

Sheet data
A1: سعر السائق بالطن | G1: سعر المصنع بالطن | M1: سعر السائق بالنقله | S1: سعر السائق بالنقله
A2: عمود1 | B2: 5 طن | C2: فرداني | D2: جرار | E2: وش | G2: عمود1 | H2: 5 طن | I2: فرداني | J2: جرار | K2: وش | M2: عمود1 | N2: 5 طن | O2: فرداني | P2: جرار | Q2: وش | S2: عمود1 | T2: 5 طن | U2: فرداني | V2: جرار | W2: وش
A3: القاهره | B3: 100 | C3: 95 | D3: 80 | E3: 95 | G3: القاهره | H3: 126 | I3: 105 | J3: 92 | K3: 105 | M3: القاهره | N3: 500 | O3: 600 | P3: 700 | Q3: 800 | S3: القاهره | T3: 550 | U3: 650 | V3: 750 | W3: 850
A4: الجيزه | B4: 110 | C4: 95 | D4: 80 | E4: 95 | G4: الجيزه | H4: 137 | I4: 105 | J4: 92 | K4: 105 | M4: الجيزه | N4: 550 | O4: 650 | P4: 750 | Q4: 850 | S4: الجيزه | T4: 600 | U4: 700 | V4: 800 | W4: 900
A5: القليوبيه | B5: 110 | C5: 95 | D5: 80 | E5: 95 | G5: القليوبيه | H5: 137 | I5: 105 | J5: 92 | K5: 105 | M5: القليوبيه | N5: 600 | O5: 700 | P5: 800 | Q5: 900 | S5: القليوبيه | T5: 650 | U5: 750 | V5: 850 | W5: 950
A6: الشرقيه | B6: 100 | C6: 85 | D6: 80 | E6: 85 | G6: الشرقيه | H6: 114 | I6: 97 | J6: 92 | K6: 97 | M6: الشرقيه | N6: 650 | O6: 750 | P6: 850 | Q6: 950 | S6: الشرقيه | T6: 700 | U6: 800 | V6: 900 | W6: 1000
A7: الاسماعيليه | B7: 105 | C7: 95 | D7: 80 | E7: 95 | G7: الاسماعيليه | H7: 161 | I7: 105 | J7: 92 | K7: 105 | M7: الاسماعيليه | N7: 700 | O7: 800 | P7: 900 | Q7: 1000 | S7: الاسماعيليه | T7: 750 | U7: 850 | V7: 950 | W7: 1050
A8: السويس | B8: 120 | C8: 95 | D8: 80 | E8: 95 | G8: السويس | H8: 183 | I8: 119 | J8: 105 | K8: 119 | M8: السويس | N8: 750 | O8: 850 | P8: 950 | Q8: 1050 | S8: السويس | T8: 800 | U8: 900 | V8: 1000 | W8: 1100
A9: اكتوبر | B9: 120 | C9: 100 | D9: 90 | E9: 100 | G9: اكتوبر | H9: 161 | I9: 108 | J9: 102 | K9: 108 | M9: اكتوبر | N9: 800 | O9: 900 | P9: 1000 | Q9: 1100 | S9: اكتوبر | T9: 850 | U9: 950 | V9: 1050 | W9: 1150
A10: البحيره | B10: 165 | C10: 125 | D10: 120 | E10: 125 | G10: البحيره | H10: 198 | I10: 149 | J10: 143 | K10: 149 | M10: البحيره | N10: 850 | O10: 950 | P10: 1050 | Q10: 1150 | S10: البحيره | T10: 900 | U10: 1000 | V10: 1100 | W10: 1200
A11: الاسكندريه | B11: 215 | C11: 150 | D11: 140 | E11: 150 | G11: الاسكندريه | H11: 280 | I11: 171 | J11: 164 | K11: 171 | M11: الاسكندريه | N11: 900 | O11: 1000 | P11: 1100 | Q11: 1200 | S11: الاسكندريه | T11: 950 | U11: 1050 | V11: 1150 | W11: 1250
A12: العاشر | B12: 40 | C12: 35 | D12: 30 | E12: 35 | G12: العاشر | H12: 50 | I12: 45 | J12: 35 | K12: 45 | M12: العاشر | N12: 950 | O12: 1050 | P12: 1150 | Q12: 1250 | S12: العاشر | T12: 1000 | U12: 1100 | V12: 1200 | W12: 1300
A18: 5 طن | B18: 5
A19: فرداني | B19: 10
A20: جرار | B20: 24
A21: وش | B21: 13

Sheet حساب سائق
A1: تاريخ المحاسبه | B1: (فارغ)
A2: السائق | B2: محمد صلاح
D4: القيم
A5: التاريخ | B5: مكان التعتيق | C5: Ship | D5: العهدة | E5: الخصم | F5: الشيك | G5: سلفة | H5: قيمه النقله | I5: ميزان ط | J5: كميه | K5: االصافي
A6: 2020-06-01 | B6: ام زغو | C6: 194197 | D6: 150 | H6: 1369.77 | I6: 65 | J6: 6.371 | K6: 1284.77
A7: 2020-06-02 | B7: اولاد رجب | C7: 194534 | D7: 100 | H7: 682.6 | I7: 75 | J7: 6.826 | K7: 657.6
A8: 2020-06-03 | B8: بحيره | C8: 0 | D8: 200 | H8: 0 | K8: -200
A9: الإجمالي الكلي | D9: 450 | H9: 2052.37 | I9: 140 | J9: 13.197 | K9: 1742.37
